Workbook

Sheet INICIO
B2: Diseño de un modelo de análisis financiero basado en el estado de flujo de efectivo con énfasis en análisis de riesgo para la toma de decisiones en la Institución Universitaria Colegio Mayor del Cauca

Sheet ERI
B2: INSTITUCIÓN UNIVERSITARIA COLEGIO MAYOR DEL CAUCA
B3: ESTADO DE RESULTADOS
B4: PERIODO A 31 DE DICIEMBRE 2018 - 2019 - 2020
B5: EN PESOS COLOMBIANOS
D6: AÑO 2020 | E6: AÑO 2019 | F6: AÑO 2018
B7: 43 | C7: Venta de servicios | D7: $4,850,932,621 | E7: $5,125,581,940 | F7: $4,857,249,646
B8: 4305 | C8: Servicios educativos | D8: $5,542,591,761 | E8: $5,523,943,290 | F8: $5,227,984,026
B9: 4390 | C9: Otros servicios | D9: $41,480,000 | E9: $45,000,000
B10: 4395 | C10: Devoluciones, rebajas y descuentos en venta de servicios (DB) | D10: $(733,139,140) | E10: $(443,361,350) | F10: $370,734,380
B11: 44 | C11: Transferencias y subvenciones | D11: $9,957,546,450 | E11: $8,828,896,433 | F11: $5,672,063,107
B12: 4428 | C12: Otras transferencias | D12: $9,957,546,450 | E12: $8,828,896,433 | F12: $5,672,063,107
C13: (=) TOTAL INGRESOS CONTINUOS | D13: =D7+D11 -> $14,808,479,071 | E13: =E7+E11 -> $13,954,478,373 | F13: =F7+F11 -> $10,529,312,753
B14: 6 | C14: Costo de ventas | D14: $7,115,849,527 | E14: $7,044,282,689 | F14: $6,251,060,596
B15: 63 | C15: Costo de ventas de servicios | D15: $7,115,849,527 | E15: $7,044,282,689 | F15: $6,251,060,596
C16: (=) GANANCIA BRUTA | D16: =D13-D14 -> $7,692,629,544 | E16: =E13-E14 -> $6,910,195,684 | F16: =F13-F14 -> $4,278,252,157
B17: 51 | C17: De administración y operación | D17: $4,995,274,878 | E17: $4,778,267,164 | F17: $4,235,540,700
B18: 5101 | C18: Sueldos y salarios | D18: $1,367,089,813 | E18: $1,247,217,193 | F18: $1,070,242,382
B19: 5102 | C19: Contribuciones imputadas | D19: $238,475 | E19: $1,147,514 | F19: $1,982,502
B20: 5103 | C20: Contribuciones efectivas | D20: $452,348,441 | E20: $350,598,206 | F20: $270,925,285
B21: 5104 | C21: Aportes sobre la nómina | D21: $50,561,034 | E21: $44,559,242 | F21: $33,945,610
B22: 5107 | C22: Prestaciones sociales | D22: $589,240,319 | E22: $543,655,639 | F22: $468,894,049
B23: 5108 | C23: Gastos de personal diversos | D23: $13,181,693 | E23: $92,417,993 | F23: $75,342,750
B24: 5111 | C24: Generales | D24: $2,396,109,783 | E24: $2,407,724,054 | F24: $2,198,368,240
B25: 5120 | C25: Impuestos, contribuciones y tasas | D25: $126,505,320 | E25: $90,947,323 | F25: $115,839,882
B26: 52 | C26: GASTOS DE VENTAS | D26: 0 | E26: $37,130,405
B27: 5211 | C27: GENERALES | D27: 0 | E27: $33,620,405
B28: 5220 | C28: IMPUESTOS, CONTRIBUCIONES Y TASAS | D28: 0 | E28: $3,510,000
B29: 53 | C29: Deterioro, depreciaciones, amortizaciones y provisiones | D29: $411,086,623 | E29: $396,671,546 | F29: $334,992,356
B30: 5347 | C30: Deterioro de cuentas por cobrar | D30: $1,012,084 | E30: $67,717,564 | F30: $68,274,577
B31: 5351 | C31: Deterioro de propiedades, planta y equipo | F31: $5,729,404
B32: 5360 | C32: Depreciación de propiedades, planta y equipo | D32: $195,201,733 | E32: $262,980,713 | F32: $141,177,257
B33: 5366 | C33: Amortizaciòn activos intangibles | D33: $214,872,806 | E33: $65,973,269 | F33: $119,811,118
C34: (=) GANANCIA OPERATIVA | D34: =D16-D17-D29 -> $2,286,268,043 | E34: =E16-E17-E26-E29 -> $1,698,126,569 | F34: =F16-F17-F29 -> $(292,280,899)
B35: 58 | C35: Otros gastos | D35: $4,537,038 | E35: $11,605,700 | F35: $18,153,343
B36: 5804 | C36: Financieros | D36: $4,535,546 | E36: $11,605,700 | F36: $18,153,343
B37: 5890 | C37: Gastos diversos | D37: $1,492 | E37: 0
B38: 48 | C38: Otros ingresos | D38: $380,206,259 | E38: $361,795,214 | F38: $430,416,807
B39: 4802 | C39: Financieros | D39: $364,283,778 | E39: $344,901,608 | F39: $395,996,658
B40: 4808 | C40: Ingresos diversos | D40: $15,922,481 | E40: $16,893,606 | F40: $34,420,149
C41: (=) GANANCIA NETA | D41: =D34-D35+D38 -> $2,661,937,264 | E41: =E34-E35+E38 -> $2,048,316,083 | F41: =F34-F35+F38 -> $119,982,565

Sheet ESF.
B2: INSTITUCIÓN UNIVERSITARIA COLEGIO MAYOR DEL CAUCA
B3: ESTADO DE SITUACIÓN FINANCIERA
B4: PERIODO A 31 DE DICIEMBRE 2018 - 2019 - 2020
B5: EN PESOS COLOMBIANOS
B6: 1 | C6: Activos | D6: 2020 | E6: 2019 | F6: 2018
B7: 11 | C7: Efectivo y equivalentes al efectivo | D7: $12,431,445,445 | E7: $10,148,416,086 | F7: $8,174,569,627
B8: 1110 | C8: Depósitos en instituciones financieras | D8: $12,431,445,445 | E8: $10,148,416,086 | F8: $8,174,569,627
B9: 13 | C9: Cuentas por cobrar | D9: $184,144,517 | E9: $290,943,009 | F9: $182,144,347
B10: 1317 | C10: Prestación de servicios | D10: $1,164,675 | E10: $8,695,553 | F10: $8,396,295
B11: 1384 | C11: Otras cuentas por cobrar | D11: $182,979,842 | E11: $282,247,456 | F11: $191,022,967
B12: 1385 | C12: Cuentas por cobrar de difícil recaudo | D12: $66,253,588 | E12: $70,639,973
B13: 1386 | C13: Deterioro acumulado de cuentas por cobrar (CR) | D13: $(66,253,588) | E13: $(70,639,973) | F13: $(17,274,915)
B14: 19 | C14: Otros activos | D14: =D15 -> $24,052,353 | E14: =E15 -> $16,198,827
B15: 1905 | C15: Bienes y servicios pagados por anticipado | D15: $24,052,353 | E15: $16,198,827
C16: TOTAL ACTIVO CORRIENTE | D16: =D7+D9+D14 -> $12,639,642,315 | E16: =E7+E9+E14 -> $10,455,557,922 | F16: =F7+F9+F14 -> $8,356,713,974
B17: 16 | C17: Propiedades, planta y equipo | D17: $38,655,871,025 | E17: $38,343,933,344 | F17: $38,006,181,660
B18: 1605 | C18: Terrenos | D18: $18,451,961,407 | E18: $18,451,961,407 | F18: $18,451,961,407
B19: 1640 | C19: Edificaciones | D19: $18,335,856,495 | E19: $18,329,037,016 | F19: $18,329,037,016
B20: 1655 | C20: Maquinaria y equipo | D20: $63,864,326 | E20: $63,864,326 | F20: $42,124,156
B21: 1665 | C21: Muebles, enseres y equipo de oficina | D21: $501,373,976 | E21: $497,625,334 | F21: $478,886,507
B22: 1670 | C22: Equipos de comunicación y computación | D22: $4,234,334,581 | E22: $3,614,736,398 | F22: $2,877,736,389
B23: 1680 | C23: Equipos de comedor, cocina, despensa y hoteleria | D23: $720,000 | E23: $720,000 | F23: $1,169,100
B24: 1681 | C24: Bienes de arte y cultura | D24: $334,468,642 | E24: $334,468,642 | F24: $275,811,242
B25: 1685 | C25: Depreciación acumulada de propiedades, planta y equipo (CR) | D25: $(3,266,708,403) | E25: $(2,948,479,780) | F25: $(2,450,544,158)
B26: 19 | C26: Otros activos | D26: =D28+D29 -> $309,144,354 | E26: =E28 -> $350,881,748 | F26: $242,547,940
B27: 1905 | C27: Bienes y servicios pagados por anticipado | F27: $16,980,090
B28: 1970 | C28: Activos intangibles | D28: $333,760,393 | E28: $350,881,748 | F28: $234,707,207
B29: 1975 | C29: Amortización acumulada de activos intangibles (CR) | D29: $(24,616,039) | F29: $(9,139,357)
C30: TOTAL ACTIVO NO CORRIENTE | D30: =D17+D26 -> $38,965,015,379 | E30: =E17+E26 -> $38,694,815,092 | F30: =F17+F26 -> $38,248,729,600
C31: TOTAL ACTIVOS | D31: =D16+D30 -> $51,604,657,694 | E31: =E16+E30 -> $49,150,373,014 | F31: =F16+F30 -> $46,605,443,574
B33: 2 | C33: Pasivos | D33: $746,776,377 | E33: $954,428,961 | F33: $471,815,603
B34: 24 | C34: Cuentas por pagar | D34: $272,983,566 | E34: $317,601,185 | F34: $61,569,908
B35: 2407 | C35: Recursos a favor de terceros | D35: $15,840,094 | E35: $34,996,829 | F35: $12,683,395
B36: 2424 | C36: Descuentos de nómina | D36: $11,072,485 | E36: $7,515,292 | F36: $9,252,097
B37: 2436 | C37: Retención en la fuente e impuesto de timbre | D37: $34,860,000 | E37: $92,472,000 | F37: $30,165,000
B38: 2440 | C38: Impuestos, Contribuciones Y Tasas | F38: 0
B39: 2490 | C39: Otras cuentas por pagar | D39: $211,210,987 | E39: $182,617,064 | F39: $9,469,416
B40: 25 | C40: Beneficios a los empleados | D40: $467,674,935 | E40: $433,346,888 | F40: $355,670,415
B41: 2511 | C41: Beneficios a los empleados a corto plazo | D41: $467,674,935 | E41: $433,346,888 | F41: $355,670,415
B42: 29 | C42: Otros pasivos | D42: $6,117,876 | E42: $203,480,888 | F42: $54,575,280
B43: 2901 | C43: Avances y anticipos recibidos | D43: $742,832 | E43: $3,631,844 | F43: $49,200,236
B44: 2902 | C44: Recursos recibidos en administración | D44: $5,375,044 | E44: $5,375,044 | F44: $5,375,044
B45: 2910 | C45: Ingresos recibidos por anticipado | D45: 0 | E45: $194,474,000 | F45: 0
C46: PASIVO CORRIENTE | D46: =D34+D40+D42 -> $746,776,377 | E46: =E34+E40+E42 -> $954,428,961 | F46: =F34+F40+F42 -> $471,815,603
C47: TOTAL PASIVO | D47: =D46 -> $746,776,377 | E47: =E46 -> $954,428,961
B48: 3 | C48: Patrimonio | D48: =D49+D52 -> $50,857,881,317 | E48: =E49+E52 -> $48,195,944,053 | F48: =+F49+F52 -> $46,133,627,971
B49: 31 | C49: Patrimonio de las entidades de gobierno | D49: $48,195,944,053 | E49: $46,147,627,971 | F49: $46,013,645,406
B50: 3105 | C50: Capital fiscal | D50: $25,103,927,401 | E50: $25,103,927,401 | F50: $25,089,927,401
B51: 3109 | C51: Resultados de ejercicios anteriores | D51: $23,092,016,652 | E51: $21,043,700,570
B52: 311001 | C52: Resultados del ejercicio | D52: $2,661,937,264 | E52: $2,048,316,083 | F52: $119,982,565
B53: 311001 | C53: Exedentes del ejercicio | D53: $2,661,937,264 | E53: $2,048,316,083 | F53: $119,982,565
B54: 3145 | C54: Impactos por la transición al nuevo marco de regulación | F54: $20,923,718,005
C56: TOTAL PASIVO + PATRIMONIO | D56: =D47+D48 -> $51,604,657,694 | E56: =E33+E48 -> $49,150,373,014 | F56: =F33+F48 -> $46,605,443,574

Sheet EFE - DIRECTO
B2: INSTITUCIÓN UNIVERSITARIA COLEGIO MAYOR DEL CAUCA
B3: ESTADO DE FLUJO DE EFECTIVO METODO DIRECTO
B4: PERIODO A 31 DE DICIEMBRE 2019- 2020
B5: EN PESOS COLOMBIANOS
C6: AÑO 2019 | D6: AÑO 2020
B7: ENTRADAS | C7: =SUM(C8:C23) -> 15,342,918,550 | D7: =SUM(D8:D23) -> 16,442,333,172
B8: Servicios educativos | C8: 5,523,943,290 | D8: 5,584,071,761
B9: Otros servicios | C9: 45,000,000 | D9: 7,530,878
B10: Otras transferencias | C10: 8,828,896,433 | D10: 9,957,546,450
B11: Financieros | C11: 344,901,608
B12: Ingresos diversos | C12: 16,893,606 | D12: 380,206,259
B13: Deterioro acumulado de cuentas por cobrar (CR) | C13: 53,365,058
B14: Depreciación acumulada de propiedades, planta y equipo (CR) | C14: 0 | D14: 318,228,623
B15: Amortización acumulada de activos intangibles (CR) | D15: 24,616,039
B16: Recursos a favor de terceros | C16: 22,313,434.00
B17: Otras cuentas por cobrar | D17: 99,267,614
B18: Cuentas por cobrar de difícil recaudo | D18: 4,386,385
B19: Retención en la fuente e impuesto de timbre | C19: 62,307,000.00
B20: Otras cuentas por pagar | C20: 173,147,648.00 | D20: 28,593,923
B21: Beneficios a los empleados a corto plazo | C21: 77,676,473.00 | D21: 34,328,047
B22: Descuentos de nómina | D22: 3,557,193
B23: Ingresos recibidos por anticipado | C23: 194,474,000.00
B24: SALIDAS | C24: =SUM(C25:C52) -> 12,946,125,955.00 | D24: =SUM(D25:D52) -> 13,546,258,864.25
B25: Devoluciones, rebajas y descuentos en venta de servicios (DB) | C25: 443,361,350 | D25: 733139140
B26: Costo de ventas de servicios | C26: 7,044,282,689.10 | D26: 7,115,849,527
B27: Sueldos y salarios | C27: 1,247,217,193.00 | D27: 1,367,089,813
B28: Contribuciones imputadas | C28: 1,147,514.00 | D28: 238,475
B29: Contribuciones efectivas | C29: 350,598,206.00 | D29: 452,348,441
B30: Aportes sobre la nómina | C30: 44,559,242.00 | D30: 50,561,034
B31: Prestaciones sociales | C31: 543,655,639.00 | D31: 589,240,319
B32: Gastos de personal diversos | C32: 92,417,993.00 | D32: 13,181,693
B33: Generales | C33: 2,407,724,053.90 | D33: 2,396,109,783
B34: Impuestos, contribuciones y tasas | C34: 90,947,323.00 | D34: 126,505,320
B35: GENERALES | C35: 33,620,405.00
B36: IMPUESTOS, CONTRIBUCIONES Y TASAS | C36: 3,510,000.00
B37: Deterioro acumulado de cuentas por cobrar (CR) | D37: 4,386,385
B38: Deterioro de cuentas por cobrar | C38: 67,717,564.00 | D38: 1,012,084
B39: Depreciación de propiedades, planta y equipo | C39: 262,980,713.00 | D39: 195,201,733
B40: Amortizaciòn activos intangibles | C40: 65,973,269.00 | D40: 214,872,806
B41: Gastos diversos | D41: 1,492
B42: Gastos Financieros | C42: 11,605,700.00 | D42: 4,535,546
B43: Amortización acumulada de activos intangibles (CR) | C43: 9,139,357.00
B44: Recursos a favor de terceros | D44: 19,156,735
B45: Prestación de servicios | C45: 299,258.00
B46: Retención en la fuente e impuesto de timbre | D46: 57,612,000
B47: Otras cuentas por cobrar | C47: 91,224,489.00
B48: Cuentas por cobrar de difícil recaudo | C48: 70,639,973.00
B49: Bienes y servicios pagados por anticipado | C49: 16,198,827.00 | D49: 7,853,526
B50: Descuentos de nómina | C50: 1,736,805.00
B51: Ingresos recibidos por anticipado | D51: 194,474,000
B52: Avances y anticipos recibidos | C52: 45,568,392.00 | D52: 2,889,012
B53: ENTRADAS DE OPERACIÓN CORRIENTES | C53: =C8+C9+C10+C11+C12+C13+C14+C15+C16+C17+C18+C19+C20+C21+C22+C23 -> 15,342,918,549.68 | D53: =D8+D9+D10+D11+D12+D13+D14+D15+D16+D17+D18+D19+D20+D21+D22+D23 -> 16,442,333,171.91
B54: ENTRADAS DE OPERACIÓN NO CORRIENTES | C54: 0.00 | D54: 0
B55: SALIDAS DE ACTIVIDADES DE OPERACIÓN CORRIENTES | C55: =+C25+C26+C27+C28+C29+C30+C31+C32+C33+C34+C35+C36+C37+C38+C39+C40+C41+C42+C43+C44+C45+C46+C47+C48+C49+C50+C51+C52 -> 12,946,125,955.00 | D55: =+D25+D26+D27+D28+D29+D30+D31+D32+D33+D34+D35+D36+D37+D38+D39+D40+D41+D42+D43+D44+D45+D46+D47+D48+D49+D50+D51+D52 -> 13,546,258,864.25
B56: SALIDAS DE ACTIVIDADES DE OPERACIÓN NO CORRIENTES
B57: FLUJO DE EFECTIVO POR ACTIVIDADES DE OPERACIÓN | C57: =C53+C54-C55-C56 -> 2,396,792,595 | D57: =D53+D54-D55-D56 -> 2,896,074,308
C58: AÑO 2019 | D58: AÑO 2020
B59: ACTIVIDADES DE INVERSIÓN
B60: ENTRADAS | C60: =+C63+C61+C62 -> 515,364,812.00 € | D60: =+D61 -> 17,121,355
B61: Equipos de comedor, cocina, despensa y hoteleria | C61: 449,100.00 € | D61: 17,121,355
B62: Depreciación acumulada de propiedades, planta y equipo (CR) | C62: 497,935,622.00 €
B63: Bienes y servicios pagados por anticipado | C63: 16,980,090.00 €
B64: SALIDAS | C64: =SUM(C65:C69) -> 952,310,947 | D64: =SUM(D65:D67) -> 630,166,304
B65: Maquinaria y equipo | C65: 21,740,170 | D65: 6,819,479
B66: Muebles, enseres y equipo de oficina | C66: 18,738,827 | D66: 3,748,642
B67: Equipos de comunicación y computación | C67: 737,000,009.00 | D67: 619,598,183
B68: Bienes de arte y cultura | C68: 58,657,400.00
B69: Activos intangibles | C69: 116,174,541.00
B70: ENTRADAS DE INVERSIÓN CORRIENTES | C70: =C63 -> 16,980,090.00 | D70: =D63 -> 0.00
B71: ENTRADAS DE INVERSIÓN NO CORRIENTES | C71: =C61+C62 -> 498,384,722.00 | D71: =D61+D62 -> 17,121,355.00
B72: SALIDAS DE ACTIVIDADES DE INVERSIÓN CORRIENTES | C72: 0.00 | D72: 0
B73: SALIDAS DE ACTIVIDADES DE INVERSIÓN NO CORRIENTES | C73: =C65+C66+C67+C68+C69 -> 952,310,947.00 | D73: =D65+D66+D67+D68+D69 -> 630,166,304.00
B74: FLUJO DE EFECTIVO POR ACTIVIDADES DE INVERSIÓN | C74: =C70+C71-C72-C73 -> (436,946,135) | D74: =D70+D71-D72-D73 -> (613,044,949)
B75: ACTIVIDADES DE FINANCIACIÓN
B76: ENTRADAS | C76: =C77 -> 14,000,000 | D76: 0 | F76: =F74-F75 -> 0 | G76: =G74-G75 -> 0
B77: Capital fiscal | C77: 14,000,000
B78: SALIDAS | C78: 0 | D78: 0
B79: ENTRADAS DE FINANCIACIÓN CORRIENTES | C79: 0 | D79: 0
B80: ENTRADAS DE FINANCIACIÓN NO CORRIENTES | C80: =C77 -> 14,000,000 | D80: 0
B81: SALIDAS DE ACTIVIDADES DE FINANCIACIÓN CORRIENTES | C81: 0 | D81: 0
B82: SALIDAS DE ACTIVIDADES DE FINANCIACIÓN NO CORRIENTES | C82: 0 | D82: 0
B83: FLUJO DE EFECTIVO POR ACTIVIDADES DE FINANCIACIÓN | C83: =C79+C80-C81-C82 -> 14,000,000 | D83: =D79+D80-D81-D82 -> 0
B85: FLUJO NETO DE EFECTIVO Y EQUIVALENTES DE EFECTIVO | C85: =C5+C57+C74+C76 -> 1,973,846,460 | D85: =D5+D57+D74+D76 -> 2,283,029,359
B86: SLADO INICIAL EFECTIVO Y EQUIVALENTES DE EFECTIVO | D86: 10,148,416,086
B87: SLADO FINAL EFECTIVO Y EQUIVALENTES DE EFECTIVO | C87: =C85+C86 -> 1,973,846,460 | D87: =D85+D86 -> 12,431,445,445
B89: FIRMAS | C89: FIRMAS | D89: FIRMAS

Sheet M. RIESGO EXT;INTER
B2: MATRIZ DE RIEGOS INTERNOS Y EXTERNOS TENIENDO EN CUENTA LAS ACTIVIDADES DE OPERACIÓN, INVERSIÓN Y FINANCIACIÓN PARA LA TOMA DE DECISIONES EN LA INSTITUCIÓN UNIVERSITARIA COLEGIO MAYOR DEL CAUCA.
B3: RIESGOS FINANCIEROS ISTITUCION UNIVERSITARIA COLEGIO MAYOR DEL CAUCA | H3: EVALUACIÓN | J3: TOMA DE DECISIONES
B4: (1) NUMERO | C4: (2) TIPO DE RIESGO | D4: (3) EFECTOS | E4: (4) EFECTOS EN LAS ACTIVIDADES DEL EFE | F4: (5) PROBABILIDAD (1-2-3) | G4: (6) IMPACTO | H4: (7) PROBABILIDAD EN % | I4: (8) VALOR | J4: (9) DESICIÓN | K4: (10) EFECTOS EN LAS ACTIVIDADES DEL EFE
B5: 1 | C5: Aumento de cobertura estudiantil con el mismo presupuesto (R. Externo) | D5: Afectación de las salidas de efectivo. | E5: A. Operación, A. Inversión | F5: 3 | G5: ALTO | H5: 24% | I5: ? | J5: Realizar esfuerzo fiscal interno para generar recursos propios | K5: A. OPERACIÓN
B6: 2 | C6: Deserción de los estudiantes a causa de la pandemia. (R. Externo) | D6: Afectación de las entradas de efectivo. | E6: A. Operación, | F6: 1 | G6: BAJO | H6: 3% | I6: ? | J6: Realizar campañas fomentando la inclusión a través de subsidios del estado | K6: A. OPERACIÓN
B7: 3 | C7: No cobertura de matrícula cero a estudiantes de los estratos 3,4,5,6 (R. Externo) | D7: Afectación de las salidas de efectivo | E7: A. Operación, | F7: 2 | G7: MEDIO | H7: 16% | I7: ? | J7: Cubrir con recursos propios la matricula | K7: A. OPERACIÓN,
B8: 4 | C8: Falta de instalaciones para asistir a la presencialidad bajo mecanismos de bioseguridad contra el COVID (R. Interno) | D8: Afectación de las salidas de efectivo | E8: A. Inversión, | F8: 3 | G8: ALTO | H8: 25% | I8: ? | J8: Realizar inversiones, como construcciones campus universitario | K8: A. DE INVERSIÓN
B9: 5 | C9: Falta de equipo tecnológicos para ayudar a los estudiantes en recibir sus clases asistidas por las Tics (R. Interno) | D9: Afectación de las salidas de efectivo | E9: A. Inversion. A. Operación, | F9: 1 | G9: BAJO | H9: 5% | I9: ? | J9: Realizar inversiones, en el adquisidor de equipos tecnológicos | K9: A. DE INVERSIÓN
B10: 6 | C10: Falta de controles por parte de las Tics, a los equipos de cómputo de pagaduría (R. Interno) | D10: Afectación de las salidas de efectivo | E10: A. Operación, A de Inversión, A de financiación | F10: 3 | G10: ALTO | H10: 27% | I10: ? | J10: Adquirir o ajustar un sistema de seguridad con el fin de asegurar los sistemas y las plataformas. | K10: A. OPERACIÓN, A. INVERSIÓN

Sheet MATRZI TOMA DE DE.
B2: MATRIZ DE RIEGOS, TENIENDO EN CUENTA LAS ACTIVIDADES DE OPERACIÓN, INVERSIÓN Y FINANCIACIÓN PARA LA TOMA DE DECISIONES EN LA INSTITUCIÓN UNIVERSITARIA COLEGIO MAYOR DEL CAUCA.
B3: RIESGOS FINANCIEROS ISTITUCION UNIVERSITARIA COLEGIO MAYOR DEL CAUCA | G3: EVALUACIÓN | I3: TOMA DE DECISIONES
B4: (1) NUMERO | C4: (2) TIPO DE RIESGO | D4: (4) EFECTOS EN LAS ACTIVIDADES DEL EFE | E4: (5) PROBABILIDAD (1-2-3) | F4: (6) IMPACTO | G4: (7) PROBABILIDAD EN % | H4: (8) VALOR | I4: (9) DESICIÓN | J4: (10) EFECTOS EN LAS ACTIVIDADES DEL EFE
B5: 1 | C5: Aumento de cobertura estudiantil con el mismo presupuesto (R. Externo) | D5: Afectación de las salidas de efectivo. | E5: 3 | F5: ALTO | G5: 24% | H5: ? | I5: Realizar esfuerzo fiscal interno para generar recursos propios | J5: A. OPERACIÓN
B6: 2 | C6: Deserción de los estudiantes a causa de la pandemia. (R. Externo) | D6: Afectación de las entradas de efectivo. | E6: 1 | F6: BAJO | G6: 3% | H6: ? | I6: Realizar campañas fomentando la inclusión a través de subsidios del estado | J6: A. OPERACIÓN
B7: 3 | C7: No cobertura de matrícula cero a estudiantes de los estratos 3,4,5,6 (R. Externo) | D7: Afectación de las salidas de efectivo | E7: 2 | F7: MEDIO | G7: 16% | H7: ? | I7: Cubrir con recursos propios la matricula | J7: A. OPERACIÓN,
B8: 4 | C8: Falta de instalaciones para asistir a la presencialidad bajo mecanismos de bioseguridad contra el COVID (R. Interno) | D8: Afectación de las salidas de efectivo | E8: 3 | F8: ALTO | G8: 25% | H8: ? | I8: Realizar inversiones, como construcciones campus universitario | J8: A. DE INVERSIÓN
B9: 5 | C9: Falta de equipo tecnológicos para ayudar a los estudiantes en recibir sus clases asistidas por las Tics (R. Interno) | D9: Afectación de las salidas de efectivo | E9: 1 | F9: BAJO | G9: 5% | H9: ? | I9: Realizar inversiones, en el adquisidor de equipos tecnológicos | J9: A. DE INVERSIÓN
B10: 6 | C10: Falta de controles por parte de las Tics, a los equipos de cómputo de pagaduría (R. Interno) | D10: Afectación de las salidas de efectivo | E10: 3 | F10: ALTO | G10: 27% | H10: ? | I10: Adquirir o ajustar un sistema de seguridad con el fin de asegurar los sistemas y las plataformas. | J10: A. INVERSIÓN

Sheet RIESGOS MONTECARLO
B2: ESCENARIOS
B3: ESCENARIOS (NIVEL DE RIESGO) | C3: RANGO PORCENTAJE %
B4: BAJO 1 | C4: 1% | D4: 15%
B5: MEDIO 2 | C5: 16% | D5: 30%
B6: ALTO 3 | C6: 30% | D6: 100%
B9: TABLA 1 | G9: TABLA 2
B10: DESCRIPCIÓN DEL RIESGO | C10: NUMERO DE RIESGOS | D10: PROBABILIDAD DE OCURRENCIA EN TERMINOS % | E10: ESCENARIO | G10: DESCRIPCIÓN DEL RIESGO | H10: NIVEL DEL RIEGO | I10: PROBABILIDAD DE GENERAR SALIDAS DE DINERO
B11: Aumento de cobertura estudiantil con el mismo presupuesto (R. Externo) | C11: 1 | D11: 24% | E11: ALTO | G11: Aumento de cobertura estudiantil con el mismo presupuesto (R. Externo) | H11: 3 | I11: 24%
B12: Deserción de los estudiantes a causa de la pandemia. (R. Externo) | C12: 2 | D12: 3% | E12: BAJO | G12: Deserción de los estudiantes a causa de la pandemia. (R. Externo) | H12: 1 | I12: 3%
B13: No cobertura de matrícula cero a estudiantes de los estratos 3,4,5,6 (R. Externo) | C13: 3 | D13: 16% | E13: MEDIO | G13: No cobertura de matrícula cero a estudiantes de los estratos 3,4,5,6 (R. Externo) | H13: 2 | I13: 16%
B14: Falta de instalaciones para asistir la presencialidad bajo mecanismos de bioseguridad contra el COVID (R. Interno) | C14: 4 | D14: 25% | E14: ALTO | G14: Falta de instalaciones para asistir la presencialidad bajo mecanismos de bioseguridad contra el COVID (R. Interno) | H14: 3 | I14: 25%
B15: Falta de equipo tecnológicos para ayudar a los estudiantes en recibir sus clases asistidas por las Tics (R. Interno) | C15: 5 | D15: 5% | E15: BAJO | G15: Falta de equipo tecnológicos para ayudar a los estudiantes en recibir sus clases asistidas por las Tics (R. Interno) | H15: 1 | I15: 5%
B16: Falta de controles por parte de las Tics, a los equipos de cómputo de pagaduría (R. Interno) | C16: 6 | D16: 27% | E16: ALTO | G16: Falta de controles por parte de las Tics, a los equipos de cómputo de pagaduría (R. Interno) | H16: 3 | I16: 27%
C17: 6 | D17: =SUM(D11:D16) -> 100% | I17: =SUM(I11:I16) -> 100%
B18: DEL TOTAL DE LOS GASTOS PRESUPUESTADOS 2020 | C18: $16,935,215,957
B19: SALIDA DE EFECTIVO ANUAL | C19: =C18*1% -> $ 169,352,160
B20: SALIDA DE EFECTIVO MENSUAL | C20: =C19/12 -> $ 14,112,680
B22: PROBABILIDADES ACUMULADAS DE OCURRENCIA DE RIESGO | G22: PROBABILIDADES ACUMULADAS DE GENERACIÓN DE SALIDA DE EFECTIVO
B23: DESCRIPCIÓN DEL RIESGO | C23: LIMITE MENOR | D23: LIMITE SUPERIRO | E23: NUMERO DE RIESGOS | G23: DESCRIPCIÓN DEL RIESGO | H23: LIMITE MENOR | I23: LIMITE SUPERIRO | J23: TIPO DE RIEGOS (ALTO.MEDIO. BAJO)
B24: Aumento de cobertura estudiantil con el mismo presupuesto (R. Externo) | C24: 0% | D24: =(C24+D11) -> 24% | E24: =C11 -> 1 | G24: Aumento de cobertura estudiantil con el mismo presupuesto (R. Externo) | H24: 0% | I24: =(H24+I11) -> 24% | J24: 1
B25: Deserción de los estudiantes a causa de la pandemia. (R. Externo) | C25: =D24 -> 24% | D25: 27% | E25: 2 | G25: Deserción de los estudiantes a causa de la pandemia. (R. Externo) | H25: =I24 -> 24% | I25: 27% | J25: 1
B26: No cobertura de matrícula cero a estudiantes de los estratos 3,4,5,6 (R. Externo) | C26: =D25 -> 27% | D26: 43% | E26: 3 | G26: No cobertura de matrícula cero a estudiantes de los estratos 3,4,5,6 (R. Externo) | H26: =I25 -> 27% | I26: 43% | J26: 1
B27: Falta de instalaciones para asistir la presencialidad bajo mecanismos de bioseguridad contra el COVID (R. Interno) | C27: =D26 -> 43% | D27: 68% | E27: 4 | G27: Falta de instalaciones para asistir la presencialidad bajo mecanismos de bioseguridad contra el COVID (R. Interno) | H27: =I26 -> 43% | I27: 68% | J27: 3
B28: Falta de equipo tecnológicos para ayudar a los estudiantes en recibir sus clases asistidas por las Tics (R. Interno) | C28: =D27 -> 68% | D28: 73% | E28: 5 | G28: Falta de equipo tecnológicos para ayudar a los estudiantes en recibir sus clases asistidas por las Tics (R. Interno) | H28: =I27 -> 68% | I28: 73% | J28: 2
B29: Falta de controles por parte de las Tics, a los equipos de cómputo de pagaduría (R. Interno) | C29: =D28 -> 73% | D29: 100% | E29: 6 | G29: Falta de controles por parte de las Tics, a los equipos de cómputo de pagaduría (R. Interno) | H29: =I28 -> 73% | I29: 100% | J29: 3
B32: SIMULACIÓN VALUACIÓN MENSUAL DE LOS RIESGOS | D32: SALIDA DE EFECTIVO POR MES
C33: MES | D33: 1 | E33: 2 | F33: 3 | G33: 4 | H33: 5 | I33: 6 | J33: 7 | K33: 8 | L33: 9 | M33: 10 | N33: 11 | O33: 12 | P33: 13 | Q33: 14 | R33: 15 | S33: 16 | T33: 17 | U33: 18 | V33: 19 | W33: 20 | X33: 21 | Y33: 22 | Z33: 23 | AA33: 24 | AB33: 25 | AC33: 26 | AD33: 27 | AE33: 28 | AF33: 29 | AG33: 30 | AH33: 31 | AI33: 32 | AJ33: 33 | AK33: 34 | AL33: 35 | AM33: 36 | AN33: 37 | AO33: 38 | AP33: 39 | AQ33: 40 | AR33: 41 | AS33: 42 | AT33: 43 | AU33: 44 | AV33: 45 | AW33: 46 | AX33: 47 | AY33: 48 | AZ33: 49 | BA33: 50 | BB33: 51 | BC33: 52 | BD33: 53 | BE33: 54 | BF33: 55 | BG33: 56 | BH33: 57 | BI33: 58 | BJ33: 59 | BK33: 60 | BL33: 61 | BM33: 62 | BN33: 63 | BO33: 64 | BP33: 65 | BQ33: 66 | BR33: 67 | BS33: 68 | BT33: 69 | BU33: 70 | BV33: 71 | BW33: 72 | BX33: 73 | BY33: 74 | BZ33: 75 | CA33: 76 | CB33: 77 | CC33: 78 | CD33: 79 | CE33: 80 | CF33: 81 | CG33: 82 | CH33: 83 | CI33: 84 | CJ33: 85 | CK33: 86 | CL33: 87 | CM33: 88 | CN33: 89 | CO33: 90 | CP33: 91 | CQ33: 92 | CR33: 93 | CS33: 94 | CT33: 95 | CU33: 96 | CV33: 97 | CW33: 98 | CX33: 99 | CY33: 100
B34: ENERO | C34: 1 | D34: =(VLOOKUP(RAND(),$C$24:$E$29,3))*VLOOKUP(RAND(),$H$24:$J$29,3)*$C$20 -> 42,338,040 | E34: 84,676,079.79 | F34: 56,450,719.86 | G34: 84,676,079.79 | H34: $ 169,352,160 | I34: $ 127,014,120 | J34: $ 84,676,080 | K34: $ 42,338,040 | L34: $ 14,112,680 | M34: $ 14,112,680 | N34: =(VLOOKUP(RAND(),$C$24:$E$29,3))*VLOOKUP(RAND(),$H$24:$J$29,3)*$C$20 -> $ 254,028,239 | O34: $ 254,028,239 | P34: $ 84,676,080 | Q34: $ 42,338,040 | R34: $ 42,338,040 | S34: $ 56,450,720 | T34: $ 254,028,239 | U34: $ 84,676,080 | V34: $ 14,112,680 | W34: $ 169,352,160 | X34: =(VLOOKUP(RAND(),$C$24:$E$29,3))*VLOOKUP(RAND(),$H$24:$J$29,3)*$C$20 -> $ 254,028,239 | Y34: $ 56,450,720 | Z34: $ 70,563,400 | AA34: $ 42,338,040 | AB34: $ 84,676,080 | AC34: $ 84,676,080 | AD34: $ 14,112,680 | AE34: $ 254,028,239 | AF34: $ 169,352,160 | AG34: $ 84,676,080 | AH34: =(VLOOKUP(RAND(),$C$24:$E$29,3))*VLOOKUP(RAND(),$H$24:$J$29,3)*$C$20 -> $ 254,028,239 | AI34: $ 169,352,160 | AJ34: $ 254,028,239 | AK34: $ 42,338,040 | AL34: $ 84,676,080 | AM34: $ 254,028,239 | AN34: $ 56,450,720 | AO34: $ 14,112,680 | AP34: $ 127,014,120 | AQ34: $ 42,338,040 | AR34: =(VLOOKUP(RAND(),$C$24:$E$29,3))*VLOOKUP(RAND(),$H$24:$J$29,3)*$C$20 -> $ 254,028,239 | AS34: $ 42,338,040 | AT34: $ 42,338,040 | AU34: $ 14,112,680 | AV34: $ 254,028,239 | AW34: $ 169,352,160 | AX34: $ 14,112,680 | AY34: $ 112,901,440 | AZ34: $ 84,676,080 | BA34: $ 84,676,080 | BB34: =(VLOOKUP(RAND(),$C$24:$E$29,3))*VLOOKUP(RAND(),$H$24:$J$29,3)*$C$20 -> $ 169,352,160 | BC34: $ 14,112,680 | BD34: $ 84,676,080 | BE34: $ 254,028,239 | BF34: $ 254,028,239 | BG34: $ 254,028,239 | BH34: $ 254,028,239 | BI34: $ 254,028,239 | BJ34: $ 84,676,080 | BK34: $ 84,676,080 | BL34: =(VLOOKUP(RAND(),$C$24:$E$29,3))*VLOOKUP(RAND(),$H$24:$J$29,3)*$C$20 -> $ 169,352,160 | BM34: $ 84,676,080 | BN34: $ 169,352,160 | BO34: $ 56,450,720 | BP34: $ 28,225,360 | BQ34: $ 127,014,120 | BR34: $ 169,352,160 | BS34: $ 14,112,680 | BT34: $ 42,338,040 | BU34: $ 56,450,720 | BV34: =(VLOOKUP(RAND(),$C$24:$E$29,3))*VLOOKUP(RAND(),$H$24:$J$29,3)*$C$20 -> $ 42,338,040 | BW34: $ 254,028,239 | BX34: $ 254,028,239 | BY34: $ 42,338,040 | BZ34: $ 127,014,120 | CA34: $ 84,676,080 | CB34: $ 42,338,040 | CC34: $ 56,450,720 | CD34: $ 127,014,120 | CE34: $ 84,676,080 | CF34: =(VLOOKUP(RAND(),$C$24:$E$29,3))*VLOOKUP(RAND(),$H$24:$J$29,3)*$C$20 -> $ 14,112,680 | CG34: $ 254,028,239 | CH34: $ 84,676,080 | CI34: $ 56,450,720 | CJ34: $ 56,450,720 | CK34: $ 254,028,239 | CL34: $ 56,450,720 | CM34: $ 254,028,239 | CN34: $ 14,112,680 | CO34: $ 56,450,720 | CP34: =(VLOOKUP(RAND(),$C$24:$E$29,3))*VLOOKUP(RAND(),$H$24:$J$29,3)*$C$20 -> $ 84,676,080 | CQ34: $ 169,352,160 | CR34: $ 254,028,239 | CS34: $ 56,450,720 | CT34: $ 84,676,080 | CU34: $ 254,028,239 | CV34: $ 42,338,040 | CW34: $ 14,112,680 | CX34: $ 127,014,120 | CY34: $ 127,014,120
B35: FEBRERO | C35: 2 | D35: 70,563,400 | E35: 42,338,039.89 | F35: 14,112,679.96 | G35: 254,028,239.36 | H35: $ 42,338,040 | I35: $ 14,112,680 | J35: $ 70,563,400 | K35: $ 254,028,239 | L35: $ 14,112,680 | M35: $ 56,450,720 | N35: $ 254,028,239 | O35: $ 254,028,239 | P35: $ 56,450,720 | Q35: $ 56,450,720 | R35: $ 169,352,160 | S35: $ 112,901,440 | T35: $ 42,338,040 | U35: $ 56,450,720 | V35: $ 14,112,680 | W35: $ 56,450,720 | X35: $ 254,028,239 | Y35: $ 42,338,040 | Z35: $ 127,014,120 | AA35: $ 42,338,040 | AB35: $ 84,676,080 | AC35: $ 14,112,680 | AD35: $ 14,112,680 | AE35: $ 28,225,360 | AF35: $ 14,112,680 | AG35: $ 56,450,720 | AH35: $ 14,112,680 | AI35: $ 42,338,040 | AJ35: $ 84,676,080 | AK35: $ 169,352,160 | AL35: $ 14,112,680 | AM35: $ 254,028,239 | AN35: $ 169,352,160 | AO35: $ 84,676,080 | AP35: $ 211,690,199 | AQ35: $ 127,014,120 | AR35: $ 211,690,199 | AS35: $ 254,028,239 | AT35: $ 84,676,080 | AU35: $ 254,028,239 | AV35: $ 14,112,680 | AW35: $ 254,028,239 | AX35: $ 84,676,080 | AY35: $ 84,676,080 | AZ35: $ 169,352,160 | BA35: $ 84,676,080 | BB35: $ 254,028,239 | BC35: $ 112,901,440 | BD35: $ 56,450,720 | BE35: $ 56,450,720 | BF35: $ 56,450,720 | BG35: $ 169,352,160 | BH35: $ 254,028,239 | BI35: $ 42,338,040 | BJ35: $ 56,450,720 | BK35: $ 84,676,080 | BL35: $ 14,112,680 | BM35: $ 70,563,400 | BN35: $ 14,112,680 | BO35: $ 28,225,360 | BP35: $ 14,112,680 | BQ35: $ 169,352,160 | BR35: $ 169,352,160 | BS35: $ 56,450,720 | BT35: $ 56,450,720 | BU35: $ 254,028,239 | BV35: $ 70,563,400 | BW35: $ 127,014,120 | BX35: $ 127,014,120 | BY35: $ 141,126,800 | BZ35: $ 169,352,160 | CA35: $ 56,450,720 | CB35: $ 127,014,120 | CC35: $ 254,028,239 | CD35: $ 169,352,160 | CE35: $ 254,028,239 | CF35: $ 14,112,680 | CG35: $ 127,014,120 | CH35: $ 254,028,239 | CI35: $ 42,338,040 | CJ35: $ 84,676,080 | CK35: $ 84,676,080 | CL35: $ 169,352,160 | CM35: $ 84,676,080 | CN35: $ 169,352,160 | CO35: $ 254,028,239 | CP35: $ 42,338,040 | CQ35: $ 169,352,160 | CR35: $ 169,352,160 | CS35: $ 127,014,120 | CT35: $ 112,901,440 | CU35: $ 169,352,160 | CV35: $ 14,112,680 | CW35: $ 42,338,040 | CX35: $ 254,028,239 | CY35: $ 211,690,199
B36: MARZO | C36: 3 | D36: 127,014,120 | E36: 14,112,679.96 | F36: 14,112,679.96 | G36: 14,112,679.96 | H36: $ 42,338,040 | I36: $ 14,112,680 | J36: $ 84,676,080 | K36: $ 56,450,720 | L36: $ 28,225,360 | M36: $ 254,028,239 | N36: $ 169,352,160 | O36: $ 211,690,199 | P36: $ 211,690,199 | Q36: $ 84,676,080 | R36: $ 254,028,239 | S36: $ 14,112,680 | T36: $ 169,352,160 | U36: $ 84,676,080 | V36: $ 127,014,120 | W36: $ 14,112,680 | X36: $ 42,338,040 | Y36: $ 42,338,040 | Z36: $ 84,676,080 | AA36: $ 56,450,720 | AB36: $ 42,338,040 | AC36: $ 42,338,040 | AD36: $ 254,028,239 | AE36: $ 254,028,239 | AF36: $ 84,676,080 | AG36: $ 169,352,160 | AH36: $ 84,676,080 | AI36: $ 56,450,720 | AJ36: $ 56,450,720 | AK36: $ 56,450,720 | AL36: $ 127,014,120 | AM36: $ 84,676,080 | AN36: $ 254,028,239 | AO36: $ 127,014,120 | AP36: $ 56,450,720 | AQ36: $ 42,338,040 | AR36: $ 254,028,239 | AS36: $ 254,028,239 | AT36: $ 254,028,239 | AU36: $ 254,028,239 | AV36: $ 84,676,080 | AW36: $ 127,014,120 | AX36: $ 42,338,040 | AY36: $ 211,690,199 | AZ36: $ 254,028,239 | BA36: $ 56,450,720 | BB36: $ 14,112,680 | BC36: $ 254,028,239 | BD36: $ 70,563,400 | BE36: $ 169,352,160 | BF36: $ 127,014,120 | BG36: $ 28,225,360 | BH36: $ 254,028,239 | BI36: $ 84,676,080 | BJ36: $ 169,352,160 | BK36: $ 42,338,040 | BL36: $ 254,028,239 | BM36: $ 169,352,160 | BN36: $ 254,028,239 | BO36: $ 28,225,360 | BP36: $ 42,338,040 | BQ36: $ 127,014,120 | BR36: $ 28,225,360 | BS36: $ 42,338,040 | BT36: $ 84,676,080 | BU36: $ 254,028,239 | BV36: $ 84,676,080 | BW36: $ 14,112,680 | BX36: $ 127,014,120 | BY36: $ 14,112,680 | BZ36: $ 169,352,160 | CA36: $ 254,028,239 | CB36: $ 254,028,239 | CC36: $ 169,352,160 | CD36: $ 42,338,040 | CE36: $ 127,014,120 | CF36: $ 169,352,160 | CG36: $ 42,338,040 | CH36: $ 42,338,040 | CI36: $ 42,338,040 | CJ36: $ 42,338,040 | CK36: $ 211,690,199 | CL36: $ 254,028,239 | CM36: $ 254,028,239 | CN36: $ 42,338,040 | CO36: $ 14,112,680 | CP36: $ 254,028,239 | CQ36: $ 56,450,720 | CR36: $ 169,352,160 | CS36: $ 211,690,199 | CT36: $ 84,676,080 | CU36: $ 14,112,680 | CV36: $ 70,563,400 | CW36: $ 84,676,080 | CX36: $ 169,352,160 | CY36: $ 42,338,040
B37: ABRIL | C37: 4 | D37: 42,338,040 | E37: 42,338,039.89 | F37: 42,338,039.89 | G37: 169,352,159.57 | H37: $ 84,676,080 | I37: $ 14,112,680 | J37: $ 254,028,239 | K37: $ 56,450,720 | L37: $ 42,338,040 | M37: $ 169,352,160 | N37: $ 169,352,160 | O37: $ 42,338,040 | P37: $ 84,676,080 | Q37: $ 169,352,160 | R37: $ 169,352,160 | S37: $ 56,450,720 | T37: $ 169,352,160 | U37: $ 14,112,680 | V37: $ 169,352,160 | W37: $ 84,676,080 | X37: $ 42,338,040 | Y37: $ 254,028,239 | Z37: $ 84,676,080 | AA37: $ 254,028,239 | AB37: $ 211,690,199 | AC37: $ 254,028,239 | AD37: $ 169,352,160 | AE37: $ 169,352,160 | AF37: $ 127,014,120 | AG37: $ 254,028,239 | AH37: $ 254,028,239 | AI37: $ 14,112,680 | AJ37: $ 28,225,360 | AK37: $ 56,450,720 | AL37: $ 14,112,680 | AM37: $ 169,352,160 | AN37: $ 70,563,400 | AO37: $ 14,112,680 | AP37: $ 84,676,080 | AQ37: $ 127,014,120 | AR37: $ 169,352,160 | AS37: $ 14,112,680 | AT37: $ 56,450,720 | AU37: $ 14,112,680 | AV37: $ 211,690,199 | AW37: $ 254,028,239 | AX37: $ 211,690,199 | AY37: $ 56,450,720 | AZ37: $ 42,338,040 | BA37: $ 42,338,040 | BB37: $ 254,028,239 | BC37: $ 254,028,239 | BD37: $ 169,352,160 | BE37: $ 254,028,239 | BF37: $ 42,338,040 | BG37: $ 56,450,720 | BH37: $ 84,676,080 | BI37: $ 169,352,160 | BJ37: $ 42,338,040 | BK37: $ 84,676,080 | BL37: $ 169,352,160 | BM37: $ 42,338,040 | BN37: $ 42,338,040 | BO37: $ 141,126,800 | BP37: $ 169,352,160 | BQ37: $ 42,338,040 | BR37: $ 211,690,199 | BS37: $ 14,112,680 | BT37: $ 127,014,120 | BU37: $ 28,225,360 | BV37: $ 56,450,720 | BW37: $ 42,338,040 | BX37: $ 42,338,040 | BY37: $ 56,450,720 | BZ37: $ 70,563,400 | CA37: $ 14,112,680 | CB37: $ 254,028,239 | CC37: $ 127,014,120 | CD37: $ 211,690,199 | CE37: $ 169,352,160 | CF37: $ 42,338,040 | CG37: $ 254,028,239 | CH37: $ 56,450,720 | CI37: $ 84,676,080 | CJ37: $ 254,028,239 | CK37: $ 56,450,720 | CL37: $ 84,676,080 | CM37: $ 169,352,160 | CN37: $ 56,450,720 | CO37: $ 112,901,440 | CP37: $ 42,338,040 | CQ37: $ 14,112,680 | CR37: $ 42,338,040 | CS37: $ 169,352,160 | CT37: $ 14,112,680 | CU37: $ 169,352,160 | CV37: $ 127,014,120 | CW37: $ 169,352,160 | CX37: $ 254,028,239 | CY37: $ 254,028,239
B38: MAYO | C38: 5 | D38: 56,450,720 | E38: 254,028,239.36 | F38: 42,338,039.89 | G38: 56,450,719.86 | H38: $ 84,676,080 | I38: $ 56,450,720 | J38: $ 169,352,160 | K38: $ 169,352,160 | L38: $ 169,352,160 | M38: $ 42,338,040 | N38: $ 127,014,120 | O38: $ 169,352,160 | P38: $ 127,014,120 | Q38: $ 84,676,080 | R38: $ 14,112,680 | S38: $ 70,563,400 | T38: $ 254,028,239 | U38: $ 254,028,239 | V38: $ 84,676,080 | W38: $ 56,450,720 | X38: $ 254,028,239 | Y38: $ 84,676,080 | Z38: $ 254,028,239 | AA38: $ 70,563,400 | AB38: $ 70,563,400 | AC38: $ 211,690,199 | AD38: $ 254,028,239 | AE38: $ 14,112,680 | AF38: $ 84,676,080 | AG38: $ 70,563,400 | AH38: $ 42,338,040 | AI38: $ 127,014,120 | AJ38: $ 14,112,680 | AK38: $ 127,014,120 | AL38: $ 254,028,239 | AM38: $ 84,676,080 | AN38: $ 14,112,680 | AO38: $ 84,676,080 | AP38: $ 169,352,160 | AQ38: $ 169,352,160 | AR38: $ 28,225,360 | AS38: $ 84,676,080 | AT38: $ 254,028,239 | AU38: $ 28,225,360 | AV38: $ 169,352,160 | AW38: $ 127,014,120 | AX38: $ 14,112,680 | AY38: $ 14,112,680 | AZ38: $ 254,028,239 | BA38: $ 169,352,160 | BB38: $ 56,450,720 | BC38: $ 42,338,040 | BD38: $ 211,690,199 | BE38: $ 84,676,080 | BF38: $ 254,028,239 | BG38: $ 42,338,040 | BH38: $ 254,028,239 | BI38: $ 14,112,680 | BJ38: $ 14,112,680 | BK38: $ 84,676,080 | BL38: $ 254,028,239 | BM38: $ 169,352,160 | BN38: $ 169,352,160 | BO38: $ 42,338,040 | BP38: $ 14,112,680 | BQ38: $ 42,338,040 | BR38: $ 254,028,239 | BS38: $ 112,901,440 | BT38: $ 211,690,199 | BU38: $ 254,028,239 | BV38: $ 14,112,680 | BW38: $ 56,450,720 | BX38: $ 14,112,680 | BY38: $ 14,112,680 | BZ38: $ 14,112,680 | CA38: $ 127,014,120 | CB38: $ 84,676,080 | CC38: $ 84,676,080 | CD38: $ 14,112,680 | CE38: $ 56,450,720 | CF38: $ 254,028,239 | CG38: $ 127,014,120 | CH38: $ 254,028,239 | CI38: $ 42,338,040 | CJ38: $ 28,225,360 | CK38: $ 14,112,680 | CL38: $ 14,112,680 | CM38: $ 84,676,080 | CN38: $ 42,338,040 | CO38: $ 84,676,080 | CP38: $ 254,028,239 | CQ38: $ 127,014,120 | CR38: $ 112,901,440 | CS38: $ 127,014,120 | CT38: $ 84,676,080 | CU38: $ 169,352,160 | CV38: $ 254,028,239 | CW38: $ 112,901,440 | CX38: $ 112,901,440 | CY38: $ 112,901,440
B39: JUNIO | C39: 6 | D39: 56,450,720 | E39: 42,338,039.89 | F39: 42,338,039.89 | G39: 127,014,119.68 | H39: $ 28,225,360 | I39: $ 56,450,720 | J39: $ 127,014,120 | K39: $ 84,676,080 | L39: $ 84,676,080 | M39: $ 56,450,720 | N39: $ 127,014,120 | O39: $ 14,112,680 | P39: $ 169,352,160 | Q39: $ 56,450,720 | R39: $ 42,338,040 | S39: $ 211,690,199 | T39: $ 112,901,440 | U39: $ 254,028,239 | V39: $ 84,676,080 | W39: $ 254,028,239 | X39: $ 14,112,680 | Y39: $ 14,112,680 | Z39: $ 56,450,720 | AA39: $ 169,352,160 | AB39: $ 42,338,040 | AC39: $ 169,352,160 | AD39: $ 169,352,160 | AE39: $ 56,450,720 | AF39: $ 14,112,680 | AG39: $ 254,028,239 | AH39: $ 254,028,239 | AI39: $ 70,563,400 | AJ39: $ 169,352,160 | AK39: $ 169,352,160 | AL39: $ 56,450,720 | AM39: $ 42,338,040 | AN39: $ 84,676,080 | AO39: $ 14,112,680 | AP39: $ 254,028,239 | AQ39: $ 211,690,199 | AR39: $ 28,225,360 | AS39: $ 56,450,720 | AT39: $ 42,338,040 | AU39: $ 169,352,160 | AV39: $ 42,338,040 | AW39: $ 84,676,080 | AX39: $ 42,338,040 | AY39: $ 127,014,120 | AZ39: $ 14,112,680 | BA39: $ 169,352,160 | BB39: $ 127,014,120 | BC39: $ 169,352,160 | BD39: $ 211,690,199 | BE39: $ 42,338,040 | BF39: $ 56,450,720 | BG39: $ 56,450,720 | BH39: $ 42,338,040 | BI39: $ 211,690,199 | BJ39: $ 254,028,239 | BK39: $ 127,014,120 | BL39: $ 42,338,040 | BM39: $ 169,352,160 | BN39: $ 56,450,720 | BO39: $ 28,225,360 | BP39: $ 254,028,239 | BQ39: $ 56,450,720 | BR39: $ 42,338,040 | BS39: $ 42,338,040 | BT39: $ 84,676,080 | BU39: $ 127,014,120 | BV39: $ 42,338,040 | BW39: $ 84,676,080 | BX39: $ 84,676,080 | BY39: $ 56,450,720 | BZ39: $ 14,112,680 | CA39: $ 14,112,680 | CB39: $ 254,028,239 | CC39: $ 169,352,160 | CD39: $ 254,028,239 | CE39: $ 42,338,040 | CF39: $ 127,014,120 | CG39: $ 254,028,239 | CH39: $ 28,225,360 | CI39: $ 211,690,199 | CJ39: $ 84,676,080 | CK39: $ 28,225,360 | CL39: $ 42,338,040 | CM39: $ 84,676,080 | CN39: $ 84,676,080 | CO39: $ 42,338,040 | CP39: $ 42,338,040 | CQ39: $ 112,901,440 | CR39: $ 254,028,239 | CS39: $ 254,028,239 | CT39: $ 56,450,720 | CU39: $ 254,028,239 | CV39: $ 254,028,239 | CW39: $ 127,014,120 | CX39: $ 169,352,160 | CY39: $ 42,338,040
B40: JULIO | C40: 7 | D40: 84,676,080 | E40: 254,028,239.36 | F40: 254,028,239.36 | G40: 56,450,719.86 | H40: $ 84,676,080 | I40: $ 56,450,720 | J40: $ 169,352,160 | K40: $ 56,450,720 | L40: $ 14,112,680 | M40: $ 211,690,199 | N40: $ 254,028,239 | O40: $ 254,028,239 | P40: $ 254,028,239 | Q40: $ 14,112,680 | R40: $ 42,338,040 | S40: $ 42,338,040 | T40: $ 42,338,040 | U40: $ 84,676,080 | V40: $ 56,450,720 | W40: $ 42,338,040 | X40: $ 169,352,160 | Y40: $ 84,676,080 | Z40: $ 14,112,680 | AA40: $ 42,338,040 | AB40: $ 169,352,160 | AC40: $ 112,901,440 | AD40: $ 56,450,720 | AE40: $ 84,676,080 | AF40: $ 14,112,680 | AG40: $ 42,338,040 | AH40: $ 127,014,120 | AI40: $ 28,225,360 | AJ40: $ 169,352,160 | AK40: $ 84,676,080 | AL40: $ 169,352,160 | AM40: $ 42,338,040 | AN40: $ 42,338,040 | AO40: $ 84,676,080 | AP40: $ 42,338,040 | AQ40: $ 169,352,160 | AR40: $ 84,676,080 | AS40: $ 84,676,080 | AT40: $ 42,338,040 | AU40: $ 56,450,720 | AV40: $ 84,676,080 | AW40: $ 28,225,360 | AX40: $ 70,563,400 | AY40: $ 42,338,040 | AZ40: $ 127,014,120 | BA40: $ 84,676,080 | BB40: $ 28,225,360 | BC40: $ 56,450,720 | BD40: $ 28,225,360 | BE40: $ 169,352,160 | BF40: $ 254,028,239 | BG40: $ 254,028,239 | BH40: $ 42,338,040 | BI40: $ 84,676,080 | BJ40: $ 84,676,080 | BK40: $ 127,014,120 | BL40: $ 254,028,239 | BM40: $ 84,676,080 | BN40: $ 42,338,040 | BO40: $ 169,352,160 | BP40: $ 127,014,120 | BQ40: $ 84,676,080 | BR40: $ 14,112,680 | BS40: $ 169,352,160 | BT40: $ 42,338,040 | BU40: $ 42,338,040 | BV40: $ 254,028,239 | BW40: $ 42,338,040 | BX40: $ 169,352,160 | BY40: $ 127,014,120 | BZ40: $ 169,352,160 | CA40: $ 127,014,120 | CB40: $ 14,112,680 | CC40: $ 28,225,360 | CD40: $ 169,352,160 | CE40: $ 14,112,680 | CF40: $ 42,338,040 | CG40: $ 127,014,120 | CH40: $ 169,352,160 | CI40: $ 28,225,360 | CJ40: $ 254,028,239 | CK40: $ 127,014,120 | CL40: $ 56,450,720 | CM40: $ 14,112,680 | CN40: $ 127,014,120 | CO40: $ 42,338,040 | CP40: $ 14,112,680 | CQ40: $ 127,014,120 | CR40: $ 56,450,720 | CS40: $ 84,676,080 | CT40: $ 56,450,720 | CU40: $ 169,352,160 | CV40: $ 169,352,160 | CW40: $ 56,450,720 | CX40: $ 84,676,080 | CY40: $ 84,676,080
B41: AGOSTO | C41: 8 | D41: 254,028,239 | E41: 169,352,159.57 | F41: 84,676,079.79 | G41: 211,690,199.46 | H41: $ 84,676,080 | I41: $ 254,028,239 | J41: $ 42,338,040 | K41: $ 211,690,199 | L41: $ 28,225,360 | M41: $ 42,338,040 | N41: $ 127,014,120 | O41: $ 14,112,680 | P41: $ 42,338,040 | Q41: $ 84,676,080 | R41: $ 169,352,160 | S41: $ 84,676,080 | T41: $ 127,014,120 | U41: $ 70,563,400 | V41: $ 169,352,160 | W41: $ 14,112,680 | X41: $ 42,338,040 | Y41: $ 14,112,680 | Z41: $ 127,014,120 | AA41: $ 127,014,120 | AB41: $ 42,338,040 | AC41: $ 254,028,239 | AD41: $ 56,450,720 | AE41: $ 84,676,080 | AF41: $ 254,028,239 | AG41: $ 42,338,040 | AH41: $ 254,028,239 | AI41: $ 56,450,720 | AJ41: $ 42,338,040 | AK41: $ 56,450,720 | AL41: $ 14,112,680 | AM41: $ 112,901,440 | AN41: $ 28,225,360 | AO41: $ 169,352,160 | AP41: $ 84,676,080 | AQ41: $ 14,112,680 | AR41: $ 14,112,680 | AS41: $ 56,450,720 | AT41: $ 169,352,160 | AU41: $ 42,338,040 | AV41: $ 14,112,680 | AW41: $ 14,112,680 | AX41: $ 84,676,080 | AY41: $ 84,676,080 | AZ41: $ 42,338,040 | BA41: $ 14,112,680 | BB41: $ 70,563,400 | BC41: $ 169,352,160 | BD41: $ 254,028,239 | BE41: $ 254,028,239 | BF41: $ 42,338,040 | BG41: $ 254,028,239 | BH41: $ 127,014,120 | BI41: $ 169,352,160 | BJ41: $ 84,676,080 | BK41: $ 169,352,160 | BL41: $ 84,676,080 | BM41: $ 42,338,040 | BN41: $ 28,225,360 | BO41: $ 169,352,160 | BP41: $ 42,338,040 | BQ41: $ 70,563,400 | BR41: $ 84,676,080 | BS41: $ 254,028,239 | BT41: $ 42,338,040 | BU41: $ 127,014,120 | BV41: $ 169,352,160 | BW41: $ 254,028,239 | BX41: $ 169,352,160 | BY41: $ 169,352,160 | BZ41: $ 56,450,720 | CA41: $ 42,338,040 | CB41: $ 169,352,160 | CC41: $ 56,450,720 | CD41: $ 127,014,120 | CE41: $ 42,338,040 | CF41: $ 169,352,160 | CG41: $ 42,338,040 | CH41: $ 56,450,720 | CI41: $ 84,676,080 | CJ41: $ 84,676,080 | CK41: $ 42,338,040 | CL41: $ 42,338,040 | CM41: $ 56,450,720 | CN41: $ 42,338,040 | CO41: $ 254,028,239 | CP41: $ 127,014,120 | CQ41: $ 84,676,080 | CR41: $ 211,690,199 | CS41: $ 42,338,040 | CT41: $ 127,014,120 | CU41: $ 42,338,040 | CV41: $ 56,450,720 | CW41: $ 56,450,720 | CX41: $ 84,676,080 | CY41: $ 14,112,680
B42: SEPTIEMBRE | C42: 9 | D42: 169,352,160 | E42: 127,014,119.68 | F42: 127,014,119.68 | G42: 254,028,239.36 | H42: $ 254,028,239 | I42: $ 84,676,080 | J42: $ 169,352,160 | K42: $ 14,112,680 | L42: $ 127,014,120 | M42: $ 56,450,720 | N42: $ 42,338,040 | O42: $ 254,028,239 | P42: $ 84,676,080 | Q42: $ 42,338,040 | R42: $ 42,338,040 | S42: $ 84,676,080 | T42: $ 169,352,160 | U42: $ 42,338,040 | V42: $ 84,676,080 | W42: $ 56,450,720 | X42: $ 254,028,239 | Y42: $ 84,676,080 | Z42: $ 127,014,120 | AA42: $ 254,028,239 | AB42: $ 14,112,680 | AC42: $ 211,690,199 | AD42: $ 254,028,239 | AE42: $ 254,028,239 | AF42: $ 42,338,040 | AG42: $ 112,901,440 | AH42: $ 84,676,080 | AI42: $ 211,690,199 | AJ42: $ 84,676,080 | AK42: $ 127,014,120 | AL42: $ 56,450,720 | AM42: $ 28,225,360 | AN42: $ 28,225,360 | AO42: $ 169,352,160 | AP42: $ 211,690,199 | AQ42: $ 70,563,400 | AR42: $ 127,014,120 | AS42: $ 42,338,040 | AT42: $ 70,563,400 | AU42: $ 169,352,160 | AV42: $ 254,028,239 | AW42: $ 169,352,160 | AX42: $ 127,014,120 | AY42: $ 254,028,239 | AZ42: $ 254,028,239 | BA42: $ 84,676,080 | BB42: $ 56,450,720 | BC42: $ 42,338,040 | BD42: $ 84,676,080 | BE42: $ 254,028,239 | BF42: $ 84,676,080 | BG42: $ 56,450,720 | BH42: $ 127,014,120 | BI42: $ 14,112,680 | BJ42: $ 70,563,400 | BK42: $ 84,676,080 | BL42: $ 84,676,080 | BM42: $ 70,563,400 | BN42: $ 84,676,080 | BO42: $ 127,014,120 | BP42: $ 127,014,120 | BQ42: $ 169,352,160 | BR42: $ 56,450,720 | BS42: $ 42,338,040 | BT42: $ 42,338,040 | BU42: $ 56,450,720 | BV42: $ 42,338,040 | BW42: $ 254,028,239 | BX42: $ 254,028,239 | BY42: $ 42,338,040 | BZ42: $ 56,450,720 | CA42: $ 42,338,040 | CB42: $ 14,112,680 | CC42: $ 169,352,160 | CD42: $ 254,028,239 | CE42: $ 42,338,040 | CF42: $ 84,676,080 | CG42: $ 42,338,040 | CH42: $ 42,338,040 | CI42: $ 70,563,400 | CJ42: $ 42,338,040 | CK42: $ 254,028,239 | CL42: $ 56,450,720 | CM42: $ 84,676,080 | CN42: $ 254,028,239 | CO42: $ 127,014,120 | CP42: $ 84,676,080 | CQ42: $ 254,028,239 | CR42: $ 127,014,120 | CS42: $ 14,112,680 | CT42: $ 42,338,040 | CU42: $ 127,014,120 | CV42: $ 42,338,040 | CW42: $ 169,352,160 | CX42: $ 127,014,120 | CY42: $ 112,901,440
B43: OCTUBRE | C43: 10 | D43: 14,112,680 | E43: 211,690,199.46 | F43: 56,450,719.86 | G43: 28,225,359.93 | H43: $ 42,338,040 | I43: $ 211,690,199 | J43: $ 127,014,120 | K43: $ 254,028,239 | L43: $ 70,563,400 | M43: $ 42,338,040 | N43: $ 42,338,040 | O43: $ 84,676,080 | P43: $ 211,690,199 | Q43: $ 127,014,120 | R43: $ 42,338,040 | S43: $ 254,028,239 | T43: $ 56,450,720 | U43: $ 42,338,040 | V43: $ 169,352,160 | W43: $ 127,014,120 | X43: $ 169,352,160 | Y43: $ 84,676,080 | Z43: $ 169,352,160 | AA43: $ 42,338,040 | AB43: $ 112,901,440 | AC43: $ 56,450,720 | AD43: $ 254,028,239 | AE43: $ 254,028,239 | AF43: $ 254,028,239 | AG43: $ 169,352,160 | AH43: $ 14,112,680 | AI43: $ 169,352,160 | AJ43: $ 254,028,239 | AK43: $ 84,676,080 | AL43: $ 169,352,160 | AM43: $ 127,014,120 | AN43: $ 169,352,160 | AO43: $ 42,338,040 | AP43: $ 42,338,040 | AQ43: $ 14,112,680 | AR43: $ 28,225,360 | AS43: $ 254,028,239 | AT43: $ 84,676,080 | AU43: $ 112,901,440 | AV43: $ 169,352,160 | AW43: $ 42,338,040 | AX43: $ 254,028,239 | AY43: $ 42,338,040 | AZ43: $ 84,676,080 | BA43: $ 169,352,160 | BB43: $ 42,338,040 | BC43: $ 14,112,680 | BD43: $ 211,690,199 | BE43: $ 127,014,120 | BF43: $ 169,352,160 | BG43: $ 84,676,080 | BH43: $ 14,112,680 | BI43: $ 56,450,720 | BJ43: $ 14,112,680 | BK43: $ 42,338,040 | BL43: $ 127,014,120 | BM43: $ 42,338,040 | BN43: $ 169,352,160 | BO43: $ 84,676,080 | BP43: $ 254,028,239 | BQ43: $ 169,352,160 | BR43: $ 254,028,239 | BS43: $ 42,338,040 | BT43: $ 169,352,160 | BU43: $ 169,352,160 | BV43: $ 42,338,040 | BW43: $ 254,028,239 | BX43: $ 254,028,239 | BY43: $ 42,338,040 | BZ43: $ 42,338,040 | CA43: $ 84,676,080 | CB43: $ 112,901,440 | CC43: $ 14,112,680 | CD43: $ 169,352,160 | CE43: $ 169,352,160 | CF43: $ 169,352,160 | CG43: $ 169,352,160 | CH43: $ 42,338,040 | CI43: $ 14,112,680 | CJ43: $ 84,676,080 | CK43: $ 56,450,720 | CL43: $ 254,028,239 | CM43: $ 14,112,680 | CN43: $ 254,028,239 | CO43: $ 127,014,120 | CP43: $ 169,352,160 | CQ43: $ 42,338,040 | CR43: $ 254,028,239 | CS43: $ 14,112,680 | CT43: $ 42,338,040 | CU43: $ 169,352,160 | CV43: $ 42,338,040 | CW43: $ 169,352,160 | CX43: $ 254,028,239 | CY43: $ 42,338,040
B44: NOVIEMBRE | C44: 11 | D44: 127,014,120 | E44: 42,338,039.89 | F44: 169,352,159.57 | G44: 254,028,239.36 | H44: $ 169,352,160 | I44: $ 127,014,120 | J44: $ 127,014,120 | K44: $ 127,014,120 | L44: $ 84,676,080 | M44: $ 211,690,199 | N44: $ 169,352,160 | O44: $ 42,338,040 | P44: $ 84,676,080 | Q44: $ 56,450,720 | R44: $ 127,014,120 | S44: $ 56,450,720 | T44: $ 254,028,239 | U44: $ 42,338,040 | V44: $ 127,014,120 | W44: $ 42,338,040 | X44: $ 84,676,080 | Y44: $ 56,450,720 | Z44: $ 254,028,239 | AA44: $ 84,676,080 | AB44: $ 84,676,080 | AC44: $ 56,450,720 | AD44: $ 84,676,080 | AE44: $ 14,112,680 | AF44: $ 84,676,080 | AG44: $ 254,028,239 | AH44: $ 127,014,120 | AI44: $ 42,338,040 | AJ44: $ 42,338,040 | AK44: $ 56,450,720 | AL44: $ 56,450,720 | AM44: $ 42,338,040 | AN44: $ 169,352,160 | AO44: $ 169,352,160 | AP44: $ 42,338,040 | AQ44: $ 56,450,720 | AR44: $ 169,352,160 | AS44: $ 254,028,239 | AT44: $ 254,028,239 | AU44: $ 84,676,080 | AV44: $ 84,676,080 | AW44: $ 169,352,160 | AX44: $ 56,450,720 | AY44: $ 14,112,680 | AZ44: $ 42,338,040 | BA44: $ 42,338,040 | BB44: $ 84,676,080 | BC44: $ 42,338,040 | BD44: $ 42,338,040 | BE44: $ 14,112,680 | BF44: $ 14,112,680 | BG44: $ 169,352,160 | BH44: $ 56,450,720 | BI44: $ 84,676,080 | BJ44: $ 127,014,120 | BK44: $ 42,338,040 | BL44: $ 42,338,040 | BM44: $ 127,014,120 | BN44: $ 42,338,040 | BO44: $ 127,014,120 | BP44: $ 112,901,440 | BQ44: $ 56,450,720 | BR44: $ 84,676,080 | BS44: $ 42,338,040 | BT44: $ 127,014,120 | BU44: $ 14,112,680 | BV44: $ 28,225,360 | BW44: $ 211,690,199 | BX44: $ 84,676,080 | BY44: $ 14,112,680 | BZ44: $ 169,352,160 | CA44: $ 254,028,239 | CB44: $ 254,028,239 | CC44: $ 84,676,080 | CD44: $ 127,014,120 | CE44: $ 169,352,160 | CF44: $ 254,028,239 | CG44: $ 56,450,720 | CH44: $ 84,676,080 | CI44: $ 169,352,160 | CJ44: $ 42,338,040 | CK44: $ 84,676,080 | CL44: $ 14,112,680 | CM44: $ 169,352,160 | CN44: $ 42,338,040 | CO44: $ 28,225,360 | CP44: $ 42,338,040 | CQ44: $ 56,450,720 | CR44: $ 254,028,239 | CS44: $ 84,676,080 | CT44: $ 84,676,080 | CU44: $ 56,450,720 | CV44: $ 127,014,120 | CW44: $ 254,028,239 | CX44: $ 84,676,080 | CY44: $ 169,352,160
B45: DICIEMBRE | C45: 12 | D45: 169,352,160 | E45: 127,014,119.68 | F45: 84,676,079.79 | G45: 56,450,719.86 | H45: $ 254,028,239 | I45: $ 42,338,040 | J45: $ 211,690,199 | K45: $ 42,338,040 | L45: $ 56,450,720 | M45: $ 169,352,160 | N45: $ 254,028,239 | O45: $ 42,338,040 | P45: $ 14,112,680 | Q45: $ 42,338,040 | R45: $ 254,028,239 | S45: $ 42,338,040 | T45: $ 14,112,680 | U45: $ 84,676,080 | V45: $ 169,352,160 | W45: $ 127,014,120 | X45: $ 169,352,160 | Y45: $ 56,450,720 | Z45: $ 56,450,720 | AA45: $ 169,352,160 | AB45: $ 254,028,239 | AC45: $ 42,338,040 | AD45: $ 14,112,680 | AE45: $ 42,338,040 | AF45: $ 56,450,720 | AG45: $ 42,338,040 | AH45: $ 84,676,080 | AI45: $ 211,690,199 | AJ45: $ 84,676,080 | AK45: $ 84,676,080 | AL45: $ 14,112,680 | AM45: $ 42,338,040 | AN45: $ 42,338,040 | AO45: $ 254,028,239 | AP45: $ 127,014,120 | AQ45: $ 42,338,040 | AR45: $ 254,028,239 | AS45: $ 169,352,160 | AT45: $ 56,450,720 | AU45: $ 84,676,080 | AV45: $ 42,338,040 | AW45: $ 254,028,239 | AX45: $ 14,112,680 | AY45: $ 70,563,400 | AZ45: $ 14,112,680 | BA45: $ 254,028,239 | BB45: $ 42,338,040 | BC45: $ 84,676,080 | BD45: $ 169,352,160 | BE45: $ 56,450,720 | BF45: $ 169,352,160 | BG45: $ 56,450,720 | BH45: $ 84,676,080 | BI45: $ 42,338,040 | BJ45: $ 84,676,080 | BK45: $ 56,450,720 | BL45: $ 14,112,680 | BM45: $ 56,450,720 | BN45: $ 28,225,360 | BO45: $ 42,338,040 | BP45: $ 56,450,720 | BQ45: $ 56,450,720 | BR45: $ 112,901,440 | BS45: $ 84,676,080 | BT45: $ 56,450,720 | BU45: $ 14,112,680 | BV45: $ 14,112,680 | BW45: $ 42,338,040 | BX45: $ 56,450,720 | BY45: $ 42,338,040 | BZ45: $ 14,112,680 | CA45: $ 127,014,120 | CB45: $ 14,112,680 | CC45: $ 56,450,720 | CD45: $ 42,338,040 | CE45: $ 14,112,680 | CF45: $ 254,028,239 | CG45: $ 14,112,680 | CH45: $ 127,014,120 | CI45: $ 127,014,120 | CJ45: $ 84,676,080 | CK45: $ 70,563,400 | CL45: $ 42,338,040 | CM45: $ 127,014,120 | CN45: $ 169,352,160 | CO45: $ 14,112,680 | CP45: $ 28,225,360 | CQ45: $ 56,450,720 | CR45: $ 169,352,160 | CS45: $ 14,112,680 | CT45: $ 254,028,239 | CU45: $ 84,676,080 | CV45: $ 14,112,680 | CW45: $ 42,338,040 | CX45: $ 127,014,120 | CY45: $ 84,676,080
D46: =SUM(D34:D45) -> 1,213,690,477 | E46: =SUM(E34:E45) -> 1,411,267,996.42 | F46: 987,887,597.49 | G46: 1,566,507,476.02 | H46: $ 1,340,704,597 | I46: $ 1,058,450,997 | J46: $ 1,637,070,876 | K46: $ 1,368,929,957 | L46: $ 733,859,358 | M46: $ 1,326,591,917 | N46: $ 1,989,887,875 | O46: $ 1,637,070,876 | P46: $ 1,425,380,676 | Q46: $ 860,873,478 | R46: $ 1,368,929,957 | S46: $ 1,086,676,357 | T46: $ 1,665,296,236 | U46: $ 1,114,901,717 | V46: $ 1,270,141,197 | W46: $ 1,044,338,317 | X46: $ 1,749,972,316 | Y46: $ 874,986,158 | Z46: $ 1,425,380,676 | AA46: $ 1,354,817,277 | AB46: $ 1,213,690,477 | AC46: $ 1,510,056,756 | AD46: $ 1,594,732,836 | AE46: $ 1,510,056,756 | AF46: $ 1,199,577,797 | AG46: $ 1,552,394,796 | AH46: $ 1,594,732,836 | AI46: $ 1,199,577,797 | AJ46: $ 1,284,253,877 | AK46: $ 1,114,901,717 | AL46: $ 1,030,225,637 | AM46: $ 1,284,253,877 | AN46: $ 1,129,014,397 | AO46: $ 1,227,803,157 | AP46: $ 1,453,606,036 | AQ46: $ 1,086,676,357 | AR46: $ 1,622,958,196 | AS46: $ 1,566,507,476 | AT46: $ 1,411,267,996 | AU46: $ 1,284,253,877 | AV46: $ 1,425,380,676 | AW46: $ 1,693,521,596 | AX46: $ 1,016,112,957 | AY46: $ 1,114,901,717 | AZ46: $ 1,383,042,636 | BA46: $ 1,256,028,517 | BB46: $ 1,199,577,797 | BC46: $ 1,256,028,517 | BD46: $ 1,594,732,836 | BE46: $ 1,735,859,636 | BF46: $ 1,524,169,436 | BG46: $ 1,481,831,396 | BH46: $ 1,594,732,836 | BI46: $ 1,227,803,157 | BJ46: $ 1,086,676,357 | BK46: $ 1,030,225,637 | BL46: $ 1,510,056,756 | BM46: $ 1,129,014,397 | BN46: $ 1,100,789,037 | BO46: $ 1,044,338,317 | BP46: $ 1,241,915,837 | BQ46: =SUM(BQ34:BQ45) -> $ 1,171,352,437 | BR46: $ 1,481,831,396 | BS46: $ 917,324,198 | BT46: $ 1,086,676,357 | BU46: $ 1,397,155,316 | BV46: $ 860,873,478 | BW46: $ 1,637,070,876 | BX46: $ 1,637,070,876 | BY46: $ 762,084,718 | BZ46: $ 1,072,563,677 | CA46: $ 1,227,803,157 | CB46: $ 1,594,732,836 | CC46: $ 1,270,141,197 | CD46: $ 1,707,634,276 | CE46: $ 1,185,465,117 | CF46: $ 1,594,732,836 | CG46: $ 1,510,056,756 | CH46: $ 1,241,915,837 | CI46: $ 973,774,918 | CJ46: $ 1,143,127,077 | CK46: $ 1,284,253,877 | CL46: $ 1,086,676,357 | CM46: $ 1,397,155,316 | CN46: $ 1,298,366,557 | CO46: $ 1,157,239,757 | CP46: $ 1,185,465,117 | CQ46: $ 1,270,141,197 | CR46: $ 2,074,563,955 | CS46: $ 1,199,577,797 | CT46: $ 1,044,338,317 | CU46: $ 1,679,408,916 | CV46: $ 1,213,690,477 | CW46: $ 1,298,366,557 | CX46: $ 1,848,761,075 | CY46: $ 1,298,366,557
C48: PROMEDIO ANUAL | D48: =AVERAGE(D46:CY46) -> $ 1,318,406,562

Sheet MATRIZ ANALIS EFE
B1: MATRIZ DE ANALISIS
B2: A. DE OPERACIÓN | C2: A.DE INVERSIÓN | D2: A. DE FINANCIACIÓN.
B3: POSITIVO (+) | C3: POSITIVO (+) | D3: POSITIVO (+)
B4: Existe buena gestión del ente económico en la obtención de efectivo y equivalentes de efectivo, derivado del proceso de operación; lo que significa que está tomando buenas decisiones en el ciclo operativo logrando alcanzar recursos de su objeto social. Es preciso considerar que está siendo dirigido de modo óptimo. | C4: Indica que el ente económico está saliendo de sus activos fijos y de sus inversiones para la obtención de efectivo y equivalentes de efectivo; lo que significa que, si los resultados del flujo de efectivo en las actividades de inversión son positivos, la empresa está saliendo es estos activos para mejorarlos, o para equilibrar otras actividades como la operación y financiación; cuando esta última situación sucede, es preciso considerar que el ente económico no está siendo dirigido de modo óptimo, logrando gestionar recursos pero para mitigar otros riegos | D4: En el tema de flujos de efectivo por actividades de financiación se debe determinar para qué es la financiación. Primero: el apalancamiento es bueno, si el ente económico está adquiriendo efectivo y equivalentes de efectivo para financiar activos que a futuro le generen beneficios económicos. Segundo, si la financiación se adquiere para pagar obligaciones internas o externas, quiere decir que no existirá retorno de efectivo y la financiación terminara siendo un fracaso
B5: A. DE OPERACIÓN | C5: A.DE INVERSIÓN | D5: A. DE FINANCIACIÓN.
B6: NEGATIVO (-) | C6: NEGATIVO (-) | D6: NEGATIVO (-)
B7: Indica una mala gestión del ente económico en la obtención de efectivo y equivalentes de efectivo derivado del proceso de operación; lo que significa que, la empresa no tiene buen manejo de su ciclo operativo, y es preciso considerar que el ente económico no está siendo dirigido de modo óptimo. Este resultado negativo afecta otras actividades como la inversión y la financiación. | C7: La actividad Inversión con signo negativo indica que el ente económico está invirtiendo en activos fijos o inversiones diferentes a las del efectivo y equivalentes de efectivo, lo cual significa que está usando recursos para crecer y para mejorar sus procesos operativos; es preciso considerar que el ente económico está siendo dirigido de modo óptimo | D7: La actividad financiación con signo negativo indica el ente económico está utilizando efectivo y equivalentes de efectivo para pagar sus obligaciones financieras del corto o largo plazo; lo que significa que la empresa cumple con sus compromisos financieros, en este sentido, es preciso considerar que el ente económico está siendo dirigido de modo óptimo
B8: A. DE OPERACIÓN | C8: A.DE INVERSIÓN | D8: A. DE FINANCIACIÓN.
B9: EN CERO (0) | C9: EN CERO (0) | D9: EN CERO (0)
B10: La entidad no está generando ni entradas ni salidas de efectivo y equivalentes de efectivo en la parte operativa lo que significa que no existe gestión en el ente económico | C10: La entidad no está generando ni entradas ni salidas de efectivo y equivalentes de efectivo en la parte de inversión; lo que significa que no estas vendiendo activos considerados como actividades de inversión; tampoco usa recursos para crecer. | D10: Esto significa que no hace uso de financiaciones; ya que su actividad operativa es autosuficiente
A14: MATRIZ DE ANÁLISIS FLUJO DE EFECTIVO
A15: Casos | B15: A. DE OPERACIÓN | C15: A.DE INVERSIÓN | D15: A. DE FINANCIACIÓN. | E15: ANALISIS DE SIGNOS | F15: INTERPRETACIÒN.
A16: 1 | B16: NEGATIVO (-) | C16: NEGATIVO (-) | D16: POSITIVO (+) | E16: Ente económico. Incursiona en la economía. | F16: El ente económico está haciendo uso de la financiación para extender la operación, para ampliar la inversión, y finalmente poder cubrir el resultado negativo del flujo de efectivo operacional
A17: 2 | B17: POSITIVO (+) | C17: NEGATIVO (-) | D17: POSITIVO (+) | E17: Ente económico. Tiene una tendencia al crecimiento | F17: El ente económico está generando buenos flujos de efectivo por actividad operativa; por otra parte, está recurriendo a la financiación para aumentar sus operaciones e incrementar su inversión
A18: 3 | B18: POSITIVO (+) | C18: NEGATIVO (-) | D18: NEGATIVO (-) | E18: Ente económico sano y en constante crecimiento | F18: El ente económico, está generando excelentes fuentes de efectivo por su actividad operativa, lo que le permite ampliar sus inversiones y saldar sus obligaciones.
A19: 4 | B19: NEGATIVO (-) | C19: POSITIVO (+) | D19: POSITIVO (+) | E19: Ente económico en declive (Rediseño) | F19: El ente económico, no está generando fuentes de efectivo por su actividad operativa, lo que le conduce a salir de sus inversiones y adquirir financiación para poder estabilizar el ciclo operativo; en este caso es notorio que está pasando una situación complicada
A20: 5 | B20: NEGATIVO (-) | C20: POSITIVO (+) | D20: NEGATIVO (-) | E20: Ente económico en disolución | F20: La empresa está vendiendo sus activos para cubrir sus flujos negativos de operación y pagar sus deudas.El ente económico, no está generando fuentes de efectivo por su actividad operativa, lo que le conduce a salir de sus inversiones y para poder pagar sus obligaciones; en este caso es notorio que está en un proceso de disolución.

Sheet MODELO A.F EFE
A1: 1
B2: MODELO DE ANALISIS FINANCIERO CON ÉNFASIS EN EL FLUJO DE EFECTIVO INSTICUCIÓN UNIVERSITARIA COLEGIO MAYOR DEL CAUCA
B6: NIT: | C6: 891.500.759-1.
B7: NOMBRE INSTITUCIÓN | C7: INSTICUCIÓN UNIVERSITARIA COLEGIO MAYOR DEL CAUCA | N7: =N62 -> (=) FLUJO ACTIVIDADES DE OPERACIÓN (1) | O7: =T62 -> 2,896,074,308
B8: CIUDAD: | C8: POPAYAN | N8: =N67 -> (=) FLUJO ACTIVIDADES DE INVERSIÓN (2) | O8: =T67 -> -613,044,949
B9: DEPARTAMENTO | C9: CAUCA | N9: =N72 -> (=) FLUJO ATIVIDADES DE FINANCIACIÓN (3) | O9: 0
B10: AREA | C10: CONTABILIDAD | N10: =N73 -> (=) FLUJO NETO EFECTIVO Y E. DE EFECTIVO | O10: =O7+O8+O9 -> 2,283,029,359
B11: TEMA | C11: ANÁLISIS FINANCIERO, BASADO EN EL FLUJO DE EFECTIVO
B12: AUTOR | C12: MAURO HERNAN PANTOJA DELGADO
B13: TRABAJO DE GRADO UNIVERSIDAD | C13: UNIVERSIDAD ANTONIO NARIÑO
B14: CIUDAD: | C14: Hernan15contador@gmail.com
B15: TELEFONOS | C15: 3216112716
G17: DILIGENCIE SOLO LAS DE COLOR NEGRO =
B18: ESTADO DE S . FINANCIERA | C18: 2018 | D18: A. Vertical | E18: =+C18+1 -> 2019 | F18: A. Vertical | G18: A. Horizontal % | H18: =+E18+1 -> 2020 | I18: A. Vertical | J18: A. Horizontal % | N18: RESULTADOS | O18: =+C18 -> 2018 | P18: A. Vertical | Q18: =+E18 -> 2019 | R18: A. Vertical | S18: A. Horizontal % | T18: =+H18 -> 2020 | U18: A. Vertical | V18: A. Horizontal %
B19: ACTIVO
B20: Efectivo y equivalentes al efectivo | C20: =ESF.!F7 -> 8,174,569,627 | D20: =+C20/$C$35 -> 17.54% | E20: =ESF.!E7 -> 10,148,416,086 | F20: =+E20/$E$35 -> 20.65% | G20: =+E20/C20-1 -> 24.15% | H20: =ESF.!D7 -> 12,431,445,445 | I20: =+H20/$H$35 -> 24.09% | J20: =+H20/E20-1 -> 22.50% | N20: Ingresos Continuos | O20: =ERI!F13 -> 10,529,312,753 | P20: =+O20/$O$20 -> 100.00% | Q20: =ERI!E13 -> 13,954,478,373 | R20: =+Q20/$Q$20 -> 100.00% | S20: =+Q20/O20-1 -> 32.53% | T20: =ERI!D13 -> 14,808,479,071 | U20: =+T20/$T$20 -> 100.00% | V20: =+T20/Q20-1 -> 6.12%
B21: Inversiones | D21: 0.00% | F21: 0.00% | G21: =+E21/C21-1 ->  | I21: 0.00% | N21: Costo de Ventas | O21: =ERI!F14 -> 6,251,060,596 | P21: 59.37% | Q21: =ERI!E14 -> 7,044,282,689 | R21: 50.48% | S21: 12.69% | T21: =ERI!D14 -> 7,115,849,527 | U21: 48.05% | V21: 1.02%
B22: Cuentas por cobrar | C22: =ESF.!F9 -> 182,144,347 | D22: 0.39% | E22: =ESF.!E9 -> 290,943,009 | F22: 0.59% | G22: 59.73% | H22: =ESF.!D9 -> 184,144,517 | I22: 0.36% | J22: -36.71% | N22: Utilidad Bruta | O22: =+O20-O21 -> 4,278,252,157 | P22: 40.63% | Q22: =+Q20-Q21 -> 6,910,195,684 | R22: 49.52% | S22: 61.52% | T22: =+T20-T21 -> 7,692,629,544 | U22: 51.95% | V22: 11.32%
B23: Cuentas por cobrar (Clientes) | D23: 0.00% | F23: 0.00% | I23: 0.00% | N23: Gastos de administracion y operación | O23: =ERI!F17 -> 4,235,540,700 | P23: 40.23% | Q23: =ERI!E17 -> 4,778,267,164 | R23: 34.24% | S23: 12.81% | T23: =ERI!D17 -> 4,995,274,878 | U23: 33.73% | V23: 4.54%
B24: Inventarios | C24: 0 | D24: 0.00% | E24: 0 | F24: 0.00% | H24: 0 | I24: 0.00% | N24: Gastos de Ventas | O24: 0 | P24: 0.00% | Q24: =ERI!E26 -> 37,130,405 | R24: 0.27% | T24: =ERI!D26 -> 0 | U24: 0.00% | V24: -100.00%
B25: Otros Activos Corrientes | C25: =ESF.!F14 -> 0 | D25: 0.00% | E25: =ESF.!E14 -> 16,198,827 | F25: 0.03% | H25: =ESF.!D14 -> 24,052,353 | I25: 0.05% | J25: 48.48% | N25: Deterioro, depreciaciones, amortizaciones y provisiones | O25: =ERI!F29 -> 334,992,356 | P25: 3.18% | Q25: =ERI!E29 -> 396,671,546 | R25: 2.84% | S25: 18.41% | T25: =ERI!D29 -> 411,086,623 | U25: 2.78% | V25: 3.63%
B26: Total Activo Corriente | C26: =SUM(C20:C25) -> 8,356,713,974 | D26: 17.93% | E26: =SUM(E20:E25) -> 10,455,557,922 | F26: 21.27% | G26: 25.12% | H26: =SUM(H20:H25) -> 12,639,642,315 | I26: 24.49% | J26: 20.89% | N26: Utilidad Operativa | O26: =+O22-O23-O24-O25 -> -292,280,899 | P26: -2.78% | Q26: =+Q22-Q23-Q24-Q25 -> 1,698,126,569 | R26: 12.17% | S26: -680.99% | T26: =+T22-T23-T24-T25 -> 2,286,268,043 | U26: 15.44% | V26: 34.63%
B27: Inversiones permanentes | C27: 0 | D27: 0.00% | F27: 0.00% | I27: 0.00% | N27: Ingresos no operativos | O27: =ERI!F38 -> 430,416,807 | P27: 4.09% | Q27: =ERI!E38 -> 361,795,214 | R27: 2.59% | S27: -15.94% | T27: =ERI!D38 -> 380,206,259 | U27: 2.57% | V27: 5.09%
B28: Cuentas por cobrar LP | D28: 0.00% | F28: 0.00% | I28: 0.00% | N28: Gastos Financieros | O28: =ERI!F36 -> 18,153,343 | P28: 0.17% | Q28: =ERI!E36 -> 11,605,700 | R28: 0.08% | S28: -36.07% | T28: =ERI!D36 -> 4,535,546 | U28: 0.03% | V28: -60.92%
B29: Propiedades, planta y equipo | C29: =ESF.!F17 -> 38,006,181,660 | D29: 81.55% | E29: =ESF.!E17 -> 38,343,933,344 | F29: 78.01% | G29: 0.89% | H29: =ESF.!D17 -> 38,655,871,025 | I29: 74.91% | J29: 0.81% | N29: Egresos no operativos | O29: =ERI!F37 -> 0 | P29: =+O29/$O$20 -> 0.00% | Q29: =ERI!E37 -> 0 | R29: 0.00% | S29: =+Q29/O29-1 ->  | T29: =ERI!D37 -> 1,492 | U29: =+T29/$T$20 -> 0.00% | V29: =+T29/Q29-1 -> 
B30: Intangibles | C30: =ESF.!F28+ESF.!F29 -> 225,567,850 | D30: 0.48% | E30: =ESF.!E28+ESF.!E29 -> 350,881,748 | F30: 0.71% | G30: 55.55% | H30: =ESF.!D28+ESF.!D29 -> 309,144,354 | I30: 0.60% | J30: -11.90% | N30: Utilidad antes de Impuestos | O30: =+O26+O27-O29-O28 -> 119,982,565 | P30: =+O30/$O$20 -> 1.14% | Q30: =+Q26+Q27-Q29-Q28 -> 2,048,316,083 | R30: =+Q30/$Q$20 -> 14.68% | S30: =+Q30/O30-1 -> 1607.18% | T30: =+T26+T27-T29-T28 -> 2,661,937,264 | U30: =+T30/$T$20 -> 17.98% | V30: =+T30/Q30-1 -> 29.96%
B31: Diferidos | C31: 0 | D31: 0.00% | E31: 0 | F31: 0.00% | H31: 0 | I31: 0.00% | N31: Impuesto de Renta | O31: 0 | P31: 0.00% | Q31: 0 | R31: 0.00% | S31: =+Q31/O31-1 ->  | T31: 0 | U31: 0.00%
B32: Otros activos | C32: =ESF.!F27 -> 16,980,090 | D32: 0.04% | E32: 0 | F32: 0.00% | G32: -100.00% | H32: 0 | I32: 0.00% | N32: Utilidad Neta | O32: =+O30-O31 -> 119,982,565 | P32: 1.14% | Q32: =+Q30-Q31 -> 2,048,316,083 | R32: 14.68% | S32: =+Q32/O32-1 -> 1607.18% | T32: =+T30-T31 -> 2,661,937,264 | U32: 17.98% | V32: 29.96%
B33: Valorizaciones | D33: 0.00% | F33: 0.00% | I33: 0.00%
B34: Total Activo No Corriente | C34: =SUM(C27:C33) -> 38,248,729,600 | D34: 82.07% | E34: =SUM(E27:E33) -> 38,694,815,092 | F34: 78.73% | G34: 1.17% | H34: =SUM(H27:H33) -> 38,965,015,379 | I34: 75.51% | J34: 0.70% | N34: INDICADORES | O34: =+O18 -> 2018 | Q34: =+Q18 -> 2019 | T34: =+T18 -> 2020 | V34: =+CHOOSE(A1,"Promedio","AVERAGE") -> Promedio
B35: Total Activo | C35: =+C34+C26 -> 46,605,443,574 | D35: 100.00% | E35: =+E34+E26 -> 49,150,373,014 | F35: 100.00% | G35: 5.46% | H35: =+H34+H26 -> 51,604,657,694 | I35: 100.00% | J35: 4.99% | N35: Razón Corriente | O35: =+C26/C46 -> 17.71 | Q35: =+E26/E46 -> 10.95 | T35: =+H26/H46 -> 16.93 | V35: =AVERAGE(O35,Q35,T35) -> 15.20
B36: PASIVO | D36: =C36/$C$35 -> 0.00% | F36: =E36/$E$35 -> 0% | I36: =H36/$H$35 -> 0% | N36: Prueba Ácida | O36: =(C26-C22)/C46 -> 17.33 | Q36: =(E26-E22)/E46 -> 10.65 | T36: =(H26-H22)/H46 -> 16.68 | V36: 14.88
B37: Obligaciones financieras | D37: =C37/$C$35 -> 0.00% | F37: =E37/$E$35 -> 0% | H37: 0 | I37: =H37/$H$35 -> 0% | N37: Capital de trabajo | O37: =+C26-C46 -> 7,884,898,370.64 | Q37: =+E26-E46 -> 9,501,128,961.32 | T37: =+H26-H46 -> 11,892,865,938.20 | V37: 9,759,631,090.05
B38: Proveedores | D38: 0.00% | F38: 0% | I38: 0% | N38: Plazo En Días De Cartera Clientes | O38: =+(C23*360)/O20 -> 0 | Q38: =+(E23*360)/Q20 -> 0 | T38: =+(H23*360)/T20 -> 0 | V38: 0
B39: Cuentas y gastos por pagar | C39: =ESF.!F34 -> 61,569,908 | D39: 0.13% | E39: =ESF.!E34 -> 317,601,185 | F39: 1% | G39: 415.84% | H39: =ESF.!D34 -> 272,983,566 | I39: 1% | J39: -14.05% | N39: Plazo En Días De Proveedores | O39: =360/(O56/C38) ->  | Q39: =360/(Q56/E38) ->  | T39: =360/(T56/H38) -> 
B40: Impuestos, gravámenes y tasas | C40: 0 | D40: 0.00% | E40: 0 | F40: 0% | H40: 0 | I40: 0% | N40: Días De Existencia De Inventarios | O40: =+O21/C24 ->  | Q40: =+Q21/E24 ->  | T40: =+T21/H24 -> 
B41: Beneficios a los emplados | C41: =ESF.!F40 -> 355,670,415 | D41: 0.76% | E41: =ESF.!E40 -> 433,346,888 | F41: 1% | G41: 21.84% | H41: =ESF.!D40 -> 467,674,935 | I41: 1% | J41: 7.92% | N41: Ciclo De Efectivo (Días) | O41: =+O38+O40-O39 ->  | Q41: =+Q38+Q40-Q39 ->  | T41: =+T38+T40-T39 -> 
B42: Pasivos Estimados y Provisiones | C42: 0 | D42: 0.00% | E42: 0 | F42: 0% | I42: 0% | N42: Nivel de endeudamiento | O42: =+C55/C35 -> 1.01% | Q42: =+E55/E35 -> 1.94% | T42: =+H55/H35 -> 1.45% | V42: 1.47%
B43: Diferidos a Corto Plazo | D43: 0.00% | F43: 0% | I43: 0% | N43: Oblig financieras egresos no OP/ Ing OP | O43: =+O29/O20 -> 0.00% | Q43: =+Q29/Q20 -> 0.00% | T43: =+T29/T20 -> 0.00% | V43: 0.00%
B44: Otros pasivos CP | C44: =ESF.!F42 -> 54,575,280 | D44: 0.12% | E44: =ESF.!E42 -> 203,480,888 | F44: 0% | G44: 272.84% | H44: =ESF.!D42 -> 6,117,876 | I44: 0% | J44: -96.99% | N44: Margen Operacional | O44: =+O26/O20 -> -2.78% | Q44: =+Q26/Q20 -> 12.17% | T44: =+T26/T20 -> 15.44% | V44: 8.28%
B45: Bonos y papeles comerciales | D45: 0.00% | F45: 0% | I45: 0% | N45: Margen Neto | O45: =+O32/O20 -> 1.14% | Q45: =+Q32/Q20 -> 14.68% | T45: =+T32/T20 -> 17.98% | V45: 11.26%
B46: Total Pasivo Corriente | C46: =SUM(C37:C45) -> 471,815,603 | D46: 1.01% | E46: =SUM(E37:E45) -> 954,428,961 | F46: 1.94% | G46: 102.29% | H46: =SUM(H37:H45) -> 746,776,377 | I46: 1.45% | J46: -21.76% | N46: Rentabilidad Del Activo (R.O.I) | O46: =+O32/C35 -> 0.26% | Q46: =+Q32/E35 -> 4.17% | T46: =+T32/H35 -> 5.16% | V46: 3.19%
B47: Obligaciones financieras | D47: 0.00% | F47: 0% | I47: 0% | N47: Rentabilidad Sobre Patrimonio | O47: =+O32/C65 -> 0.26% | Q47: =+Q32/E65 -> 4.25% | T47: =+T32/H65 -> 5.23% | V47: 3.25%
B48: Cuentas por Pagar | D48: 0.00% | F48: 0% | I48: 0% | N48: Gastos admon/ Ing Op | O48: =+O23/O20 -> 40.23% | Q48: =+Q23/Q20 -> 34.24% | T48: =+T23/T20 -> 33.73% | V48: 36.07%
B49: Beneficios a los emplados | D49: 0.00% | F49: 0% | I49: 0% | N49: Gastos Vtas/ Ing Op | O49: =+O24/O20 -> 0.00% | Q49: =+Q24/Q20 -> 0.27% | T49: =+T24/T20 -> 0.00% | V49: 0.09%
B50: Pasivos Estimados y Provisiones | D50: 0.00% | F50: 0% | I50: 0% | N50: Ing no oper / Ing Op | O50: =+O27/O20 -> 4.09% | Q50: =+Q27/Q20 -> 2.59% | T50: =+T27/T20 -> 2.57% | V50: 3.08%
B51: Diferidos | D51: 0.00% | F51: 0% | I51: 0% | N51: Gastos Financieros / Ing Op | O51: =+O28/O20 -> 0.17% | Q51: 0.00% | T51: 0.00% | V51: 0.06%
B52: Otros pasivos | D52: 0.00% | F52: 0% | I52: 0% | N52: Variación En Ventas | Q52: =+Q20/O20-1 -> 32.5% | T52: =+T20/Q20-1 -> 6.1% | V52: 19.32%
B53: Bonos y papeles comerciales | D53: 0.00% | F53: 0% | I53: 0% | N53: Crecimiento en gadm+gvtas | Q53: =+((Q23+Q24)/(O23+O24))-1 -> 13.7% | T53: =+((T23+T24)/(Q23+Q24))-1 -> 3.7% | V53: 8.71%
B54: Total Pasivo No Corriente | C54: =SUM(C47:C53) -> 0 | D54: 0.00% | E54: =SUM(E47:E53) -> 0 | F54: 0% | H54: =SUM(H47:H53) -> 0 | I54: 0%
B55: Total Pasivo | C55: =+C46+C54 -> 471,815,603 | D55: 1.01% | E55: =+E46+E54 -> 954,428,961 | F55: 1.94% | G55: 102.29% | H55: =+H46+H54 -> 746,776,377 | I55: 1.45% | J55: -21.76%
B56: PATRIMONIO | D56: 0.00% | F56: 0% | I56: 0% | N56: Presupuesto de Ingresos | O56: 160,000,000 | Q56: 800,000,000 | T56: 800,000,000
B57: Patrimonio de las entidades de gobierno | C57: =ESF.!F50 -> 25,089,927,401 | D57: 53.83% | E57: =ESF.!E50 -> 25,103,927,401 | F57: 51% | G57: 0.06% | H57: =ESF.!D50 -> 25,103,927,401 | I57: 49% | J57: 0.00% | N57: FLUJO DE EFECTIVO | O57: =+O34 -> 2018 | P57: Part % ING | Q57: =+Q34 -> 2019 | R57: Part % ING | T57: =+T34 -> 2020 | U57: Part % ING | V57: Part % ING PROM
B58: Impactos NICSP | C58: =ESF.!F54 -> 20,923,718,005 | D58: 44.90% | F58: 0% | G58: -100.00% | I58: 0% | J58: =+H59/E58-1 ->  | N58: (+) Entradas Actividad de operación Corrientes | Q58: ='EFE - DIRECTO'!C53 -> 15,342,918,550 | T58: ='EFE - DIRECTO'!D53 -> 16,442,333,172
B59: Reservas | D59: 0.00% | F59: 0% | I59: 0% | J59: =+#REF!/E59-1 ->  | N59: (+) Entradas Actividad de operación No Corrientes | Q59: ='EFE - DIRECTO'!C54 -> 0 | T59: ='EFE - DIRECTO'!D54 -> 0
B60: Revalorización del patrimonio | D60: 0.00% | F60: 0% | I60: 0% | N60: (-) Salidas Actividad de operación Corrientes | Q60: ='EFE - DIRECTO'!C55 -> 12,946,125,955 | T60: ='EFE - DIRECTO'!D55 -> 13,546,258,864
B61: Superávit método de participación | D61: 0.00% | F61: 0% | I61: 0% | N61: (-) Salidas Actividad de operación No Corrientes | Q61: ='EFE - DIRECTO'!C56 -> 0 | T61: ='EFE - DIRECTO'!D56 -> 0
B62: Resultados del ejercicio | C62: =ESF.!F52 -> 119,982,565 | D62: 0.26% | E62: =ESF.!E52 -> 2,048,316,083 | F62: 4% | G62: 1607.18% | H62: =ESF.!D52 -> 2,661,937,264 | I62: 5% | J62: 29.96% | N62: (=) FLUJO ACTIVIDADES DE OPERACIÓN (1) | O62: 0 | P62: =+O62/$O$20 -> 0.00% | Q62: =+Q58+Q59-Q60-Q61 -> 2,396,792,595 | R62: =+Q62/$Q$20 -> 17.18% | T62: =+T58+T59-T60-T61 -> 2,896,074,308 | U62: =+T62/$T$20 -> 19.56% | V62: =AVERAGE(P62,R62,U62) -> 12.24%
B63: Resultados de ejercicios anteriores | C63: =ESF.!F51 -> 0 | D63: 0.00% | E63: =ESF.!E51 -> 21,043,700,570 | F63: 43% | H63: =ESF.!D51 -> 23,092,016,652 | I63: 45% | J63: 9.73% | N63: (+) Entradas Actividad de Inversión Corrientes | Q63: ='EFE - DIRECTO'!C70 -> 16,980,090 | T63: ='EFE - DIRECTO'!D70 -> 0
B64: Superávit por valorizaciones | D64: 0.00% | F64: 0% | I64: 0% | N64: (+) Entradas Actividad de Inversión no Corriente | Q64: ='EFE - DIRECTO'!C71 -> 498,384,722 | T64: ='EFE - DIRECTO'!D71 -> 17,121,355
B65: Total Patrimonio | C65: =SUM(C57:C64) -> 46,133,627,971 | D65: 98.99% | E65: =SUM(E57:E64) -> 48,195,944,053 | F65: 98% | G65: 4.47% | H65: =SUM(H57:H64) -> 50,857,881,317 | I65: 98.55% | J65: 5.52% | N65: (-) Salidas Actividad de Inversión Corrientes | Q65: ='EFE - DIRECTO'!C72 -> 0 | T65: ='EFE - DIRECTO'!D72 -> 0
B66: Total Pasivo y Patrimonio | C66: =+C55+C65 -> 46,605,443,574 | D66: 100.00% | E66: =+E55+E65 -> 49,150,373,014 | F66: 100% | G66: 5.46% | H66: =+H55+H65 -> 51,604,657,694 | I66: 100.00% | J66: 4.99% | N66: (-) Salidas Actividad de Inversión no Corriente | Q66: ='EFE - DIRECTO'!C73 -> 952,310,947 | T66: ='EFE - DIRECTO'!D73 -> 630,166,304
B67: Sumas Iguales | C67: =IF(C68=0,"ok","revisar") -> ok | E67: =IF(E68=0,"ok","revisar") -> ok | H67: =IF(H68=0,"ok","revisar") -> ok | N67: (=) FLUJO ACTIVIDADES DE INVERSIÓN (2) | O67: 0 | P67: =+O67/$O$20 -> 0.00% | Q67: =+Q63+Q64-Q65-Q66 -> -436,946,135 | R67: =+Q67/$Q$20 -> -3.13% | T67: =+T63+T64-T65-T66 -> -613,044,949 | U67: =+T67/$T$20 -> -4.14% | V67: =AVERAGE(P67,R67,U67) -> -2.42%
C68: =+C66-C35 -> 0 | E68: =+E66-E35 -> 0 | H68: =+H66-H35 -> 0 | N68: (+) Entradas Actividad de Financiacion Corriente | Q68: ='EFE - DIRECTO'!C79 -> 0 | T68: ='EFE - DIRECTO'!D79 -> 0
N69: (+) Entradas Actividad de Financiacion no Corriente | Q69: ='EFE - DIRECTO'!C80 -> 14,000,000 | T69: ='EFE - DIRECTO'!D80 -> 0
N70: (+)Salidas Actividad de Financiacion Corriente
N71: (+)Salidas Actividad de Financiacion no Corriente
N72: (=) FLUJO ATIVIDADES DE FINANCIACIÓN (3) | O72: =+O29 -> 0 | P72: =+O72/$O$20 -> 0.00% | Q72: =+Q68+Q69-Q70-Q71 -> 14,000,000 | R72: =+Q72/$Q$20 -> 0.10% | T72: =+T68+T69-T70-T71 -> 0 | U72: =+T72/$T$20 -> 0.00% | V72: =AVERAGE(P72,R72,U72) -> 0.03%
N73: (=) FLUJO NETO EFECTIVO Y E. DE EFECTIVO | O73: =+O67-O72 -> 0 | P73: =+O73/$O$20 -> 0.00% | Q73: =+Q62+Q67+Q72 -> 1,973,846,460 | R73: =+Q73/$Q$20 -> 14.14% | T73: =+T62+T67+T72 -> 2,283,029,359 | U73: =+T73/$T$20 -> 15.42% | V73: =AVERAGE(P73,R73,U73) -> 9.85%
N74: RAZON CORRIENTE | P74: =+O74/$O$20 -> 0.00% | Q74: =Q35 -> 10.95 | R74: =+Q74/$Q$20 -> 0.00% | T74: =T35 -> 16.93 | U74: =+T74/$T$20 -> 0.00%
N75: PRUEBA ACCIDA | P75: =+O75/$O$20 -> 0.00% | Q75: =Q36 -> 10.65 | R75: =+Q75/$Q$20 -> 0.00% | T75: =T36 -> 16.68 | U75: =+T75/$T$20 -> 0.00%
N76: CAPITAL DE TRABAJO | O76: =+O75-(O74*S100) -> 0 | P76: =+O76/$O$20 -> 0.00% | Q76: =Q37 -> 9,501,128,961 | R76: =+Q76/$Q$20 -> 68.09% | T76: =T37 -> 11,892,865,938 | U76: =+T76/$T$20 -> 80.31%
O78: AÑO 2019 | P78: AÑO 2020 | Q78: Variación absoluta | R78: Variación relativa
N79: Variación Efectivo y equivalentes de efectivo | O79: 10,148,416,086 | P79: 12,431,445,445 | Q79: =P79-O79 -> 2,283,029,359 | R79: =((P79/O79)-1) -> 22%
N82: INDICADORES FLUJO DE EFECTIVO | R82: AÑO 2020
N83: % Flujo de efectivo Actividades de operación | O83: Flujo neto actividades de Operación | R83: =T62/Q79 -> 127%
O84: Variacion Efectivo y equivalentes de efectivo
B86: Comentarios del analista del estado de Flujo de Efectivo: | N86: % Flujo de efectivo Actividades de Inversión | O86: Flujo neto actividades de Inversión | R86: =(T67)/Q79 -> -27%
O87: Variacion Efectivo y equivalentes de efectivo
N89: % Flujo de efectivo Actividades de Financiación | O89: Flujo neto actividades de Financiación | R89: =T72/Q79 -> 0
O90: Variacion Efectivo y equivalentes de efectivo
N92: Cobertura de las inversiones negativas frentes a los flujos operativos. | O92: Flujo neto actividades de Inversión | R92: =(T67*-1)/T62 -> 21%
O93: Flujo neto actividades de Operación
N95: Cobertura de las financiaciones negativas frentes a los flujos operativos. | O95: Flujo neto actividades de Operación
O96: Flujo neto actividades de Financiación
N98: Liquidez en terminos de flujo de efectivo | O98: Flujo neto actividades de Operación | R98: =T62/H46 -> 3.88
O99: Pasivo corriente
B101: Nombre del analista del flujo de efectivo:
N102: PROMEDIO ANUAL DE RIESGOS BAJO MODELO MONTECARLO | O102: ='RIESGOS MONTECARLO'!D48 -> 1,318,406,562
N104: COBERTURA DE LOS RIEGOS | O104: Flujo neto de efectivo y equivalentes de efectivo | R104: =T73/O102 -> 1.73 | V104: =+U104*T104 -> 0
O105: Promedio anual de riesgos | V105: =+U105*T105 -> 0
V106: =+U106*T106 -> 0
N107: DISPOSICIÓN DE EFECTIVO Y E DE EFECTIVO FRENTE A LOS RIESGOS | O107: Flujo neto de efectivo y equivalentes de efectivo (-) Promedio anual de riesgos | R107: =T73-O102 -> 964,622,796 | V107: =+U107*T107 -> 0
V108: =SUM(V104:V107) -> 0
V112: =+U112*T112 -> 0
V113: =+U113*T113 -> 0
V114: =+U114*T114 -> 0
V115: =+U115*T115 -> 0
V116: =SUM(V112:V115) -> 0

Sheet RESULTADOS
B5: RESULTADOS ESTADO DE FLUJO DE EFECTIVO
B6: FLUJOS DE EFECTIVO | C6: VALORES | E6: ALERTAS
B7: (+) Entradas Actividad de operación Corrientes | C7: 16,442,333,172 | E7: AZUL BUENO
B8: (+) Entradas Actividad de operación No Corrientes | C8: 0 | E8: VERDE PUNTO DE EQUILIBRIO
B9: (-) Salidas Actividad de operación Corrientes | C9: 13,546,258,864 | E9: ROJO MALO
B10: (-) Salidas Actividad de operación No Corrientes | C10: 0 | E10: AMARILLO; (ALERTA)
B11: (=) FLUJO ACTIVIDADES DE OPRACIÓN (1) | C11: 2,896,074,308 | D11: =IF(C11<0,"La entidad, no está generando flujo de efectivo productos de las actividades de Operación",IF(C11=0,"La entidad, no está generando no entradas ni salidas de efectivo en las actividades de Operación",IF(C11>0,"La entidad, está generando flujo de efectivo productos de las actividades de Operación"))) -> La entidad, está generando flujo de efectivo productos de las actividades de Operación
B12: (+) Entradas Actividad de Inversión Corrientes | C12: 0
B13: (+) Entradas Actividad de Inversión no Corriente | C13: 17,121,355
B14: (-) Salidas Actividad de Inversión Corrientes | C14: 0
B15: (-) Salidas Actividad de Inversión no Corriente | C15: 630,166,304
B16: (=) FLUJO ACTIVIDADES DE INVERSIÓN (2) | C16: -613,044,949 | D16: =IF(C16<0,"La entidad, no está generando flujo de efectivo productos de las actividades de Inversión",IF(C16=0,"La entidad, no está generando no entradas ni salidas de efectivo en las actividades de Inversión",IF(C16>0,"La entidad, está generando flujo de efectivo productos de las actividades de Inversión"))) -> La entidad, no está generando flujo de efectivo productos de las actividades de Inversión
B17: (+) Entradas Actividad de Financiacion Corriente | C17: 0
B18: (+) Entradas Actividad de Financiacion no Corriente | C18: 0
B19: (+)Salidas Actividad de Financiacion Corriente
B20: (+)Salidas Actividad de Financiacion no Corriente
B21: (=) FLUJO ATIVIDADES DE FINANCIACIÓN (3) | C21: 0 | D21: =IF(C21<0,"La entidad, no está generando flujo de efectivo productos de las actividades de Financiación",IF(C21=0,"La entidad, no está generando no entradas ni salidas de efectivo en las actividades de Financiación",IF(C21>0,"La entidad, está generando flujo de efectivo productos de las actividades de Financiación"))) -> La entidad, no está generando no entradas ni salidas de efectivo en las actividades de Financiación
B22: (=) FLUJO NETO EFECTIVO Y E. DE EFECTIVO | C22: 2,283,029,359
B26: ALERTAS
B27: AZUL BUENO
B28: VERDE PUNTO DE EQUILIBRIO
B29: ROJO MALO
B30: AMARILLO; (ALERTA)
B32: INDICADORES FINANCIEROS PARA ANALIZAR EL ESTADO DE FLUJO DE EFECTIVO
B33: Flujo neto actividades de Operación / Variacion Efectivo y equivalentes de efectivo
B34: % Flujo de efectivo Actividades de operación | C34: =C11/C22 -> 127% | D34: =IF(C34<0,"Las actividades de operación están por debajo del flujo neto de efectivo y equivalentes de efectivo",IF(C34=0,"Existe un punto de equilibrio entre las actividades de operación y el flujo neto de efectivo y equivalentes de efectivo ",IF(C34>0,"Las actividades de operación están por encima del flujo neto de efectivo y equivalentes de efectivo "))) -> Las actividades de operación están por encima del flujo neto de efectivo y equivalentes de efectivo
B36: Flujo neto actividades de Inversión / Variacion Efectivo y equivalentes de efectivo
B37: % Flujo de efectivo Actividades de Inversión | C37: =C16/C22 -> -27% | D37: =IF(C37<0,"Las actividades de inversión están por debajo del flujo neto de efectivo y equivalentes de efectivo",IF(C37=0,"Existe un punto de equilibrio entre las actividades de inversión y el flujo neto de efectivo y equivalentes de efectivo",IF(C37>0,"Las actividades de inversión están por encima del flujo neto de efectivo y equivalentes de efectivo"))) -> Las actividades de inversión están por debajo del flujo neto de efectivo y equivalentes de efectivo
B39: Flujo neto actividades de Financiación / Variacion Efectivo y equivalentes de efectivo
B40: % Flujo de efectivo Actividades de Financiación | C40: =C21/C22 -> 0.00 | D40: =IF(C40<0," Las actividades de financiación están por debajo del flujo neto de efectivo y equivalentes de efectivo",IF(C40=0," Las actividades de financiación no tienen incidencia en el flujo neto de efectivo y equivalentes de efectivo",IF(C40>0," Existe participación de las actividades de financiaciones en el flujo neto de efectivo y equivalentes de efectivo"))) -> Las actividades de financiación no tienen incidencia en el flujo neto de efectivo y equivalentes de efectivo
B42: Flujo neto actividades de Inversión / Flujo neto actividades de Operación
B43: Cobertura de las inversiones negativas frentes a los flujos operativos. | C43: =(C37/C34)*-1 -> 21% | D43: =IF(C43<0,"Las actividades de operación no aportaron a las actividades de inversión",IF(C43=0,"Las actividades de operación no aportaron a las actividades de inversión",IF(C43>0,"Las actividades de operación aportaron a las actividades de inversión "))) -> Las actividades de operación aportaron a las actividades de inversión
B45: Flujo neto actividades de Operación / Flujo neto actividades de Financiación
B46: Cobertura de las financiaciones negativas frentes a los flujos operativos. | C46: =C21/C11 -> 0.0000 | D46: =IF(C46<0,"Las actividades de operación no aportaron a las actividades de Financiación",IF(C46=0,"Las actividades de operación no aportaron a las actividades de Financiación",IF(C46>0,"Las actividades de operación aportaron a las actividades de Financiación "))) -> Las actividades de operación no aportaron a las actividades de Financiación
B48: Flujo neto actividades de Operación / Pasivo corriente
B49: Liquidez en términos de flujo de efectivo | C49: =C11/'MODELO A.F EFE'!H46 -> 3.9 | D49: =IF(C49<1," Las actividades de operación corrientes no pueden cubrir los pasivos corrientes ",IF(C49=1," por cada peso de deuda corrientes el flujo de operación tiene 1 peso para cubrirlo con efectivo corriente ",IF(C49>1," Las actividades de operación corrientes pueden cubrir los pasivos corrientes, y tiene excedentes para cubrir la financiación y la operación"))) -> Las actividades de operación corrientes pueden cubrir los pasivos corrientes, y tiene excedentes para cubrir la financiación y la operación
B52: PROMEDIO ANUAL DE RIESGOS BAJO MODELO MONTECARLO | C52: ='RIESGOS MONTECARLO'!D48 -> 1,318,406,562
B55: ANAISIS DE LA EMPRESA BAJO EL ESTADO DE FLUJO DE EFECTIVO
B57: A. DE OPERACIÓN | C57: A.DE INVERSIÓN | D57: A. DE FINANCIACIÓN
B58: -1,000,000,000 | C58: 8,796,354,555 | D58: 11,111
B59: =IF(B58<0,"-",IF(B58=0,"0",IF(B58>0,"+"))) -> - | C59: =IF(C58<0,"-",IF(C58=0,"0",IF(C58>0,"+"))) -> + | D59: =IF(D58<0,"-",IF(D58=0,"0",IF(D58>0,"+"))) -> +
A60: .(+) | B60: =IF(RESULTADOS!B58>0,'MATRIZ ANALIS EFE'!B4,IF(B58>=0,".",IF(B58<0,"."))) -> . | C60: =IF(RESULTADOS!C58>0,'MATRIZ ANALIS EFE'!C4,IF(C58<=0,".")) -> Indica que el ente económico está saliendo de sus activos fijos y de sus inversiones para la obtención de efectivo y equivalentes de efectivo; lo que significa que, si los resultados del flujo de efectivo en las actividades de inversión son positivos, la empresa está saliendo es estos activos para mejorarlos, o para equilibrar otras actividades como la operación y financiación; cuando esta última situación sucede, es preciso considerar que el ente económico no está siendo dirigido de modo óptimo, logrando gestionar recursos pero para mitigar otros riegos | D60: =IF(RESULTADOS!D58>0,'MATRIZ ANALIS EFE'!D4,IF(D58<=0,".")) -> En el tema de flujos de efectivo por actividades de financiación se debe determinar para qué es la financiación. Primero: el apalancamiento es bueno, si el ente económico está adquiriendo efectivo y equivalentes de efectivo para financiar activos que a futuro le generen beneficios económicos. Segundo, si la financiación se adquiere para pagar obligaciones internas o externas, quiere decir que no existirá retorno de efectivo y la financiación terminara siendo un fracaso
A61: .(-) | B61: =IF(RESULTADOS!B58<0,'MATRIZ ANALIS EFE'!B7,IF(B58>=0,".")) -> Indica una mala gestión del ente económico en la obtención de efectivo y equivalentes de efectivo derivado del proceso de operación; lo que significa que, la empresa no tiene buen manejo de su ciclo operativo, y es preciso considerar que el ente económico no está siendo dirigido de modo óptimo. Este resultado negativo afecta otras actividades como la inversión y la financiación. | C61: =IF(RESULTADOS!C58<0,'MATRIZ ANALIS EFE'!C7,IF(C58>=0,".")) -> . | D61: =IF(RESULTADOS!D58<0,'MATRIZ ANALIS EFE'!D7,IF(D58>=0,".")) -> .
A62: .(0) | B62: =IF(RESULTADOS!B58=0,'MATRIZ ANALIS EFE'!B10,IF(B58>=0,".",IF(B58<0,"."))) -> . | C62: =IF(RESULTADOS!C58=0,'MATRIZ ANALIS EFE'!C7,IF(C58>=0,".",IF(C58<0,"."))) -> . | D62: =IF(RESULTADOS!D58=0,'MATRIZ ANALIS EFE'!D10,IF(D58>=0,".",IF(D58<0,"."))) -> .
B64: ANALISIS DE LOS RIESGOS
B65: Flujo neto de efectivo y equivalentes de efectivo (/) Promedio anual de riesgos
B66: COBERTURA DE LOS RIEGOS | C66: =C22/C52 -> 1.7 | D66: =IF(C66<1," El flujo neto de efectivo y equivalentes de efectivo no puede cubrir los riesgo de la entidad",IF(C66=1,"Por cada peso del flujo neto de efectivo y equivalentes de efectivo tiene un peso para cubrirlo los riesgos de la entidad",IF(C66>1," El flujo neto de efectivo y equivalentes de efectivo puede cubrir los riesgos, y tiene excedentes para cubrir las demás actividades"))) -> El flujo neto de efectivo y equivalentes de efectivo puede cubrir los riesgos, y tiene excedentes para cubrir las demás actividades
B68: Flujo neto de efectivo y equivalentes de efectivo (-) Promedio anual de riesgos
B69: DISPOSICIÓN DE EFECTIVO Y E DE EFECTIVO FRENTE A LOS RIESGOS | C69: =C22-C52 -> $ 964,622,796.4 | D69: =IF(C69<1," El flujo neto de efectivo y equivalentes de efectivo no puede cubrir en su totalidad los riesgos",IF(C69>1," El flujo neto de efectivo y equivalentes de efectivo si puede cubrir en su totalidad los riesgos, y dispone de un saldo para las demás actividades")) -> El flujo neto de efectivo y equivalentes de efectivo si puede cubrir en su totalidad los riesgos, y dispone de un saldo para las demás actividades
B72: OBSERVACIÓN

Sheet Hoja2
A1: https://www.youtube.com/watch?v=9qluJswHlRQ&ab_channel=ElT%C3%ADoTech | F1: FORMULA SI
A2: https://www.youtube.com/watch?v=qD1ESeppezg
A3: https://www.youtube.com/watch?v=OpBK7mmVwpw&ab_channel=LernenCapacitaciones | F3: FORMULA CONDICIONAL COLORES
B5: https://www.youtube.com/watch?v=OeBMWKr5xFY&ab_channel=ElT%C3%ADoTech | F5: DASCHORD
B7: https://www.youtube.com/watch?v=gPMBLEDiwG8&ab_channel=SANTOFFICE
B9: https://www.youtube.com/watch?v=JzvNvWzkqiU&ab_channel=SANTOFFICE
